Workbook

Sheet はじめに
A1: 中山間地域等直接支払交付金参考様式集（第6期対策）
A2: ★基本情報入力欄 はじめに太枠内の情報を入力してください。
B3: 都道府県名 | D3: 鳥取県 | E3: ← 「都道府県」まで記入してください。
B4: 市町村名 | D4: 伯耆町 | E4: ← 「市町村」まで記入してください。
B5: 協定名 | D5: あいうえお協定
B6: 代表者名 | D6: 中山間 太郎
B7: 協定所在地 | D7: 鳥取県伯耆町○○○○
A9: ★記入の手順と注意事項
B10: ・「★提出書類と各シートの説明」のシート名をクリックすることで、入力する様式に移動します。または、画面下の様式名を選択すると、入力する様式を切り替えることができます。左下の◀▶をクリックすることで、隠れている様式を表示させることができます。
B12: ・すべての協定の方が入力する必要のあるセルには、この色（オレンジ色）が塗ってあります。
B13: ・該当する場合に、集落協定の方が入力する必要のあるセルには、この色（薄いオレンジ色）が塗ってあります。
B14: ・この色（黄緑色）が塗ってあるセルは自動入力されます。自動入力されたものが間違っている場合は、正しく修正してください。（入力されている数式を消去すると、自由に入力できます。）
B15: ・市町村に提出する前に、自動集計された箇所も含め、誤りがないかご確認ください。
B16: ・行を追加する際は、一番左にある行番号をクリックして行全体をコピーし、表の最下部の太線より上の位置で行番号を右クリックし「コピーしたセルの挿入」を選択してください。
B17: ・画面上部に右のような表示が出た場合は「コンテンツの有効化」を押してください。
A19: ★提出書類と各シートの説明
A20: １．事業計画の申請時に提出するもの
B21: 様式番号 | D21: 様式名 | F21: 提出の必要性 | G21: シート名
B22: 参考様式第４号 | D22: 多面的機能発揮促進事業に関する計画の認定［変更の認定］の申請について | F22: 必須 （個別協定） | G22: 参４_申請
F23: 必須 （個別協定） | G23: 参４_申請_事業計画
C24: 別添１ | D24: 実施区域位置図 | F24: 必須 （個別協定） | G24: 別紙１②
C25: 別紙様式６ | D25: 個別協定 経営規模及び農業所得調書 | F25: 必須 （個別協定） | G25: 別紙６
C26: 別紙様式７ | D26: 協定農用地の概要 | F26: 必須 （個別協定） | G26: 別紙７
C27: 別添 | D27: 農作業受委託契約書（様式例） | F27: 必要に応じて （個別協定） | G27: 別紙７（別添）
C28: 別紙様式８ | D28: 環境負荷低減のチェックシート（集落協定向け） | F28: 必須 （集落協定） | G28: 別紙８
C29: 別紙様式９ | D29: 環境負荷低減のチェックシート（個別協定向け） | F29: 必須 （個別協定） | G29: 別紙９
A31: ２．ネットワーク化活動計画作成時に使用するもの
B32: 様式番号 | D32: 様式名 | F32: 提出の必要性 | G32: シート名
C33: 別紙様式２ | D33: 農用地の内訳等及びネットワーク化活動計画 ○農用地の内訳等 | F33: 必須 （集落協定） | G33: 別紙２① （再掲）
D34: 農用地の内訳等及びネットワーク化活動計画 ○ネットワーク化活動計画 | F34: 必須 （集落協定） | G34: 別紙２②（ネットワーク化活動計画）
F35: 必要に応じて （集落協定） | G35: 別紙２③（ネットワーク化）
F36: 必要に応じて （集落協定） | G36: 別紙２④（統合）
F37: 必要に応じて （集落協定） | G37: 別紙２⑤（多様な組織等の参画）
A38: ２．その他の様式
B39: 様式番号 | D39: 様式名 | F39: 提出の必要性 | G39: シート名
B40: 参考様式第10号 | D40: 中山間地域等直接支払交付金交付農用地の自然災害における災害復旧計画の提出について | F40: 必要に応じて （個別協定） | G40: 参10
A43: ３．その他のシート（協定の方は入力不要です。（市町村用））
B44: 様式番号 | D44: 内容 | F44: 提出の必要性 | G44: シート名
D45: 市町村の実施状況調査の集計用シート | G45: 実施状況報告（様式2）

Sheet 参４_申請
A1: （参考様式第４号） | AD1: 〇
E3: 2025-08-29
A4: 伯耆町長 | C4: 様
E5: =はじめに!D5&"" -> あいうえお協定
E6: =はじめに!D6&"" -> 中山間 太郎
A8: 多面的機能発揮促進事業に関する計画の認定［変更の認定］の申請について
A10: このことについて、農業の有する多面的機能の発揮の促進に関する法律（平成26年法律第78号）第７条第１項［８条第１項］の規定に基づき、下記関係書類を添えて認定を申請する。
A13: １ 事業計画
A15: ２ 農業の有する多面的機能の発揮の促進に関する活動計画書
B16: □ | C16: １号事業（多面的機能支払交付金）
B17: ☑ | C17: ２号事業（中山間地域等直接支払交付金）
B18: □ | C18: ３号事業（環境保全型農業直接支払交付金）
A20: ３ その他
B21: □ | C21: 都道府県の同意書の写し（都道府県営土地改良施設の管理）
B23: ※農山漁村の活性化のための定住等及び地域間交流の促進に関する法律（平成19年法律第48号）第５条第１項に規定する活性化計画が作成されている場合であって、その添付書類として、多面的機能発揮促進事業に関する計画の認定の申請（変更の認定の申請の場合も含む。）に必要な上記１から３までに掲げる書類が既に市町村長に提出されているときは、これらの書類の添付を省略することができる。
B25: □ | C25: ※に該当するため、書類の添付を省略する。
A27: ＜施行注意＞
A28: 変更の認定の申請の場合は、［ ］内の記載に置き換えるものとする。

Sheet 参４_申請_事業計画
A3: 多面的機能発揮促進事業に関する計画
G5: =参４_申請!E3 -> 2025-08-29
G6: =はじめに!D5&"" -> あいうえお協定
A8: １ 多面的機能発揮促進事業の目標
A10: １．現況
B11: 山村地域に指定されている地域など、平場地域と比べて生産条件の格差が大きいことから、これを補正する取組を行うことが必要である。
A13: ２．目標
B14: 農用地の所有者が耕作できなくなった農地を個別に引き受けて農用地を守るとともに、耕作放棄地の発生を防止することに努める。
A16: ２ 多面的機能発揮促進事業の内容
A17: （１）多面的機能発揮促進事業の種類及び実施区域
A18: ① 種類（実施するものに○を付すこと。）
C19: １号事業（多面的機能支払交付金）
F20: 農業の有する多面的機能の発揮の促進に関する法律（平成26年法律第78号。以下「法」という。）第３条第３項第１号イに掲げる施設の維持その他の主として当該施設の機能の保持を図る活動（以下「イの活動」という。） （農地維持支払交付金）
F22: 法第３条第３項第１号ロに掲げる施設の改良その他の主として当該施設の機能の増進を図る活動（以下「ロの活動」という。） （資源向上支払交付金）
C24: 〇 | E24: ２号事業（中山間地域等直接支払交付金）
E25: ３号事業（環境保全型農業直接支払交付金）
E26: ４号事業（その他農業の有する多面的機能の発揮の促進に資する事業）
A28: ② 実施区域
C29: 個別協定「（別添１）実施区域位置図」のとおり。
A31: （２）活動の内容等
A32: ②２号事業
A33: １）農業生産活動の内容
C34: ・個別協定「（別紙様式６）経営規模及び農業所得調書」の「第１ 経営規模」に記載のとおり。
A36: ２）農業生産活動の継続的な実施を推進するための活動
C37: ・個別協定「（別紙様式６）経営規模及び農業所得調書」の「１経営規模」に記載のとおり。
A39: ３ 多面的機能発揮促進事業の実施期間
C40: ・個別協定の認定日から４年経過後の最初の３月31日までの期間。
A42: ４ 農業者団体等の構成員に係る事項
C43: 特になし。
A44: ＜施行注意＞
A45: 記入内容が集落協定もしくは個別協定と重複する場合は、「２（１）②実施区域」、「２（２）活動内容等」、「３ 多面的機能発揮促進事業の実施期間」及び「農業者団体等の構成員に係る事項」の記入を省略することも可能とする。

Sheet 別紙１②
B1: （別添１）
B2: 実施区域位置図 | H2: 組織名称：
C3: １号事業（多面支払） | D3: ○ | E3: 2号事業（中山間直払） | G3: ３号事業（環境直払） | H3: =はじめに!D5&"" -> あいうえお協定

Sheet 別紙６
AG1: （別紙様式６）
A2: 個 別 協 定
A3: 経営規模及び農業所得調書
A5: 第１ 経営規模
Y6: (単位：a)
B7: 地 目 | F7: 自己所有地 | N7: 借入面積 | V7: 計
B8: 田
B9: 畑
B10: 草 地
B11: 計
B12: 採草放牧地
B13: 注）借入面積には受託面積（基幹３作業）を含む。
A15: 第２ 農業従事者一人当たりの農業所得
N16: （単位：円）
B17: 農業所得① | H17: 農業従事者② | N17: ①／②
B19: 注１ 農業従事者一人当たりの農業所得は以下のとおり算定する。
C20: （確定申告に基づく農業所得＋専従者給与額－負債の償還額）／農業従事者数
C21: 当該農業者が生産組織、農地所有適格法人等の構成員であり、当該生産組織、農地所有適格法人等から給与額又は役員報酬等を受けている場合は、上記農業所得に当該給与額又は役員報酬等を含めるものとする。
C22: (1) 負債の償還額は実施要領の運用第６の１の(1)のイの(ｱ)による。
C23: (2) 農業従事者数は実施要領の運用第６の１の(1)のイの(ｲ)により換算する。
B24: 注２ 農業所得調書には、農業所得額を証明する書類を添付する。
A27: 【農業生産活動等として取り組むべき事項を実施する場合に使用】
A28: 第３ 農業生産活動等として取り組むべき事項
B30: １ 農用地に関する事項
C31: 以下の項目から１項目以上（２で管理の対象とする水路・農道等が、多面的機能支払交付金実施要綱別紙１第５の２に基づく活動計画に定める施設と同一である場合は、２項目以上）を選択する。
C32: 多面的機能支払交付金実施要綱別紙１第５の２に基づく活動計画に定める施設と同一。
A33: 該 当 | C33: 具 体 的 に 取 り 組 む 行 為
C34: ①耕作放棄されそうな農用地については、集落内外の担い手農家や第３セクター等による利用権の設定等や農作業の委託を行う。
C35: ②既荒廃農地を協定農用地に含める場合には、荒廃農地の復旧又は畜産的利用を行う。
C36: ③既荒廃農地を協定農用地に含めない場合には、協定農用地に悪影響を与えないよう草刈り、防虫対策等の保全管理を行う。
C37: ④農地法面の崩壊を未然に防止するため、定期的な点検を行う。
C38: ⑤協定農用地への柵、ネット等の設置等により鳥獣害防止対策を行う。
C39: ⑥作業道の設置、排水改良等簡易な基盤整備を行う。
C40: ⑦定農用地における農業生産活動が維持されるよう担い手（認定農業者、これに準ずるものとして市町村長が認定した者、第３セクター、特定農業法人、農業協同組合、生産組織等）を確保する。
C41: ⑧集落の新たな雇用創出や地域経済の活性化に資する地場農産物の加工・販売を行う。
C42: ⑨その他（土地改良事業、災害復旧及び地目変換（田から畑等へ）等）
B44: ２ 水路・農道等の管理方法（①②について該当する取組に○印を記入（複数可））
A45: 具 体 的 に 取 り 組 む 行 為
A46: ①水 路 | F46: ア）水路清掃 | M46: イ）草刈り | T46: ウ）その他（ | AC46: ）
A47: ②農 道 | F47: ア）簡易補修 | M47: イ）草刈り | T47: ウ）その他（ | AC47: ）
A48: ③その他
B50: ３ 多面的機能を増進する活動として以下の項目から１項目以上選択し、実施する。
C51: 以下の項目のうち該当項目に○印を記入する。
A52: 該 当 | C52: 具 体 的 に 取 り 組 む 行 為
C53: ①農地と一体となった周辺林地の下草刈り等を行う。
C54: ②棚田オーナー制度の実施、市民農園・体験農園の開設・運営を行う。
C55: ③景観作物を作付ける。
C56: ④土壌流亡に配慮した営農を行う（等高線栽培、根の張る植物を畝間に植栽）。
C57: ⑤体験民宿を実施する（グリーン・ツーリズム）。
C58: ⑥魚類・昆虫類の保護を行う（ビオトープの確保）。
C59: ⑦冬期の湛水化、不作付地での水張り等の鳥類の餌場の確保を図る。
C60: ⑧粗放的畜産を行う。
C61: ⑨堆きゅう肥の施肥、拮抗植物の利用、アイガモ・鯉の利用、輪作の徹底、緑肥作物の作付け等を行う。
C62: ⑩その他 （ ）
A63: 注）法律で義務づけられている行為及び国庫補助事業の補助対象として行われる行為以外のものを１つ以上選択。
A64: 注）上記１～３で定めた活動を行う際は、作業安全対策の観点から、以下の点に努めること。
B65: ・作業環境の点検（作業前の危険箇所の確認・共有、機器の定期点検等）
B66: ・活動で使用する機械又は使用頻度が高い機械（刈払機等）の安全な使用に関する取組の実施（研修・講習の開催又は参加等）
A68: 第４ 加算措置適用のために取り組むべき事項（加算措置必須要件）
C69: 次の活動のうち取り組む項目に○印を記入するとともに、現状及び達成目標について具体的に記載し、実施する。
B72: 該 当 | E72: 項 目 | M72: 取組期間 | R72: 現状 | Z72: 達成目標
E73: 超急傾斜農地保全管理加算 | M73: 令和 | P73: 年度
M74: ～
M75: 令和 | P75: 年度
B76: 注１）現状は、取組期間の開始年度における地域の現状を記載する。
B77: 注２）達成目標は、取組期間の最終年度までに達成される地域の現状を踏まえた目標を記載する。

Sheet 別紙７
AV1: （別紙様式７）
A2: 協定農用地の概要
A3: 【市町村名：伯耆町 】
A4: 交付対象者の氏名・名称 | D4: 字 | G4: 地番 | J4: 地目 | M4: 傾斜度 | P4: 面積 | S4: 10ａ当たりの単価 | V4: 交付額 | Y4: 設定 権利等 | AB4: 農用地の管理 | AH4: 設定権利者等名(出し手) | AK4: 始期 | AN4: 終期 | AQ4: 契 約 年月日 | AT4: 交付金の使用方法
AB5: 農用地 の現況 | AE5: 具体的 活動内容
A6: ○○○○ | D6: ○○ | G6: 123 | J6: 田 | M6: 急傾斜 | P6: ●●㎡ | S6: 21,000円 | V6: ●●円 | Y6: 利用権設定 （賃借権） | AB6: 耕作地 | AE6: 耕作 | AH6: 〇〇〇〇 | AK6: 2020-04-01 | AN6: 2025-03-31 | AQ6: 2020-03-01 | AT6: ●●円 （●●%）
A7: ○○○○ | D7: ○○ | G7: 124 | J7: 田 | M7: 急傾斜 | P7: ●●㎡ | S7: 21,000円 | V7: ●●円 | Y7: 所有権移転 | AB7: 耕作地 | AE7: 耕作 | AH7: 〇〇〇〇 | AK7: 2020-04-01 | AN7: － | AQ7: 2020-03-01 | AT7: ●●円 （●●%）
A8: ○○○○ | D8: ○○ | G8: 125 | J8: 畑 | M8: 急傾斜 | P8: ●●㎡ | S8: 11,500円 | V8: ●●円 | Y8: 農作業受託（全作業） | AB8: 荒廃農地 | AE8: 畑に復旧（R6) | AH8: 〇〇〇〇 | AK8: 2020-04-01 | AN8: 2025-03-31 | AQ8: 2020-03-01 | AT8: ●●円 （●●%）
A33: 【個別協定の場合】
A34: 注１) 一団の農用地すべてを耕作する場合及び別紙様式６の経営規模のＡが都府県にあっては３ha以上、北海道にあっては30ha以上(草地では100ha以上)の経営の規模を有している場合は、自作地も記入する。但し、農業従事者一人当たりの農業所得が同一都道府県内の都市部の勤労者一人当たりの平均所得を上回る場合は除く。
A37: 注２) 注１の農業従事者一人当たりの農業所得は、別紙様式６の２の注書きにより算出する。
A38: 注３) 注１の但し書きに該当する者は引受地のみを記入。
A39: 注４) 使用方法には、受託者(個別協定の申請者)の受取額及び受取割合を記入すること。
A41: 【集落協定の場合】
A42: 注１) 農業従事者一人当たりの農業所得が同一都道府県内の都市部の勤労者一人当たりの平均所得を上回る場合にあって、水路・農道等の管理や集落内の取りまとめ等集落営農上の基幹的活動において中核的なリーダーとしての役割を果たす担い手として指定された者において、引受地に対して交付される交付額を個人配分に充てる場合に記入。
A45: 注２) 注１に該当する者の個人配分に充てる引受地のみを記入。
A46: 注３) 使用方法には、受託者(注１に該当する者)の受取額を記入。
A48: 協定農用地の概要
A49: 注１ 農地又は採草放牧地について、所有権移転、賃借権等を設定した場合は、農地法第３条の規定に基づく許可書又は農業経営基盤強化促進法に基づく農用地利用集積計画の市町村公告の写しを添付のこと。
A51: ２ 農作業受委託の場合は、別添契約書様式例を参考に契約書を作成し、その写しを添付のこと。
A52: ３ 申請者の居住する市町村以外に存する農用地について、利用権の設定等を行っており、当該農用地の存する市町村の長に申請書を提出している場合は、当該申請書の写しを添付すること。

Sheet 別紙７（別添）
A2: 農作業受委託契約書（様式例）
A4: 受託者及び委託者は、この契約書の定めるところにより農作業受委託契約を締結する。この契約書は、２通作成して受託者及び委託者がそれぞれ１通所持する。
A7: 令和 年 月 日
V9: 受託者（以下「甲」という。）
Q10: （住所）
Q11: （氏名）
V12: 委託者（以下「乙」という。）
Q13: （住所）
Q14: （氏名）
A16: １ 農作業受委託の内容
B17: 甲は、この契約書に定めるところにより乙により、別表に記載する農作業を受託し、善良なる管理者の注意をもって農作業を実施するものとする。
B19: 乙は、甲が農作業を円滑に行えるよう作付けに十分な配慮をする。
A21: ２ 受託料の支払方法
B22: 乙は、別表に記載された農作業に対して、同表に記載された金額の受託料を同表に記載された方法により甲に支払う。
A25: ３ 契約の変更
B26: 契約事項を変更する場合には、甲、乙合意の上、その変更事項をこの契約書に明記する。
A30: （別 表）
B31: 字 | E31: 地 番 | H31: 地 目 | K31: 面 積 （㎡） | N31: 作 物 | Q31: 作 業 種 類 | T31: 期間 | W31: 受託料の額(円) | Z31: 支 払 方 法 | AC31: 通年・期間の別
Q32: 作業名 | T32: 始期
T33: 終期
B35: 合 計

Sheet 別紙９
J1: （ 別紙様式９ ）
D3: 環境負荷低減のチェックシート（個別協定向け）
C5: 申請時 （します） | D5: （１）適正な施肥 | E5: 報告時 （しました） | H5: 申請時 （します） | I5: （４）悪臭及び害虫の発生防止 | J5: 報告時 （しました）
B7: ① | C7: □ | D7: 肥料の適正な保管 | E7: □ | G7: ⑫ | H7: □ | I7: 悪臭・害虫の発生防止・低減に努める | J7: □
B9: ② | C9: □ | D9: 肥料の使用状況等の記録・保存に努める | E9: □
H10: 申請時 （します） | I10: （５）廃棄物の発生抑制、 適正な循環的な利用及び適正な処分 | J10: 報告時 （しました）
B11: ③ | C11: □ | D11: 作物特性のデータに基づく施肥設計を検討 | E11: □
B13: ④ | C13: □ | D13: 有機物の適正な施用による土づくりを検討 | E13: □ | G13: ⑬ | H13: □ | I13: プラ等廃棄物の削減に努め、適正に処理 | J13: □
C16: 申請時 （します） | D16: （２）適正な防除 | E16: 報告時 （しました） | H16: 申請時 （します） | I16: （６）生物多様性への悪影響の防止 | J16: 報告時 （しました）
B18: ⑤ | C18: □ | D18: 病害虫・雑草が発生しにくい生産条件の整備を検討 | E18: □ | G18: ⑭ | H18: □ | I18: 病害虫・雑草の発生状況を把握した上で防除の要否及びタイミングの判断に努める（再掲） | J18: □
B20: ⑥ | C20: □ | D20: 病害虫・雑草の発生状況を把握した上で防除の要否及びタイミングの判断に努める | E20: □
G21: ⑮ | H21: □ | I21: 多様な防除方法（防除資材、使用方法）を活用した防除を検討（再掲） | J21: □
B23: ⑦ | C23: □ | D23: 多様な防除方法（防除資材、使用方法）を活用した防除を検討 | E23: □
H25: 申請時 （します） | I25: （７）環境関係法令の遵守等 | J25: 報告時 （しました）
B26: ⑧ | C26: □ | D26: 農薬の適正な使用・保管 | E26: □
G27: ⑯ | H27: □ | I27: 「みどりの食料システム戦略」を理解し、適切な事業実施に努める | J27: □
B28: ⑨ | C28: □ | D28: 農薬の使用状況等の記録・保存 | E28: □
G30: ⑰ | H30: □ | I30: 関係法令の遵守 | J30: □
C31: 申請時 （します） | D31: （３）エネルギーの節減 | E31: 報告時 （しました）
G32: ⑱ | H32: □ | I32: 環境配慮の取組方針の策定や研修の実施に努める | J32: □
B33: ⑲ | C33: □ | D33: 農機・ハウス等の電気・燃料の使用状況の記録・保存に努める | E33: □
G34: ⑲ | H34: □ | I34: ※機械等を扱う事業者である場合 機械等の適切な整備と管理に努める （該当しない ） | J34: □
B36: ⑪ | C36: □ | D36: 省エネを意識し、不必要・非効率なエネルギー消費をしないよう努める | E36: □
G38: ⑳ | H38: □ | I38: 正しい知識に基づく作業安全に努める | J38: □
B41: 注１ 申請時は「します」の□、報告時は「しました」の□にチェックしてください。
B42: 注２ 「※」の記載内容に該当しない場合は「（該当しない □）」にチェックしてください。 この場合、当該項目の申請時・報告時のチェックは不要です。

Sheet 参10
A1: （参考様式第10号）
Z3: 番 号
Z4: 年 月 日
B5: 市町村長 殿
X7: =はじめに!D6 -> 中山間 太郎
A11: 中山間地域等直接支払交付金交付農用地の自然災害における災害復旧計画の提出について
B14: ○年○月○日に自然災害を受けた交付農用地について、下記のとおり災害復旧計画を作成したので提出する。 なお、○○協定は、災害復旧計画に基づき速やかに交付農用地の復旧を図り、農業生産活動等を継続していく考えであることを申し添える。
A19: 記
B21: 災害復旧計画
B22: 集落協定又は個別協定名 | K22: =はじめに!D5 -> あいうえお協定 | S22: 交付農用地面積 | Z22: =SUM(#REF!)+SUM(#REF!)+SUM(#REF!)+SUM(#REF!) ->  | AF22: ha
B23: 被災状況 | C23: 災害名及び 被災年月日 | H23: ※ 年 月 日 | Q23: 復旧計画 | R23: 復旧工事 工期（予定） | W23: 年 月 日 ～ 年 月 日
C25: 被災農用地面積 | I25: ｈａ | R25: 復旧農用地面積 | Y25: ｈａ
C26: 被災協定対象施設名 | J26: 被災状況 | R26: 復旧協定対象施設名
B29: ※ 例：台風○号による△△水害
E30: 梅雨前線豪雨による△△土砂災害 等

Sheet 実施状況報告（様式2）
A1: [001]協定識別コード | B1: [002]都道府県名 | C1: [003]市町村名 | D1: [004]地方公共団体コード | E1: [005]集落協定名 | F1: [006]協定整理番号 | G1: 協定識別コード重複確認セル | H1: [007]協定の所在地 | I1: [008]協定認定年度（交付開始年度） | J1: [010]複数の市町村にまたがる協定の事項 | K1: [012]協定参加者総計 | L1: [013]うち中核的リーダー | M1: [016]農業者（人） | N1: [017]農業法人数 | O1: [018]農業生産組織数 | P1: [019]土地改良区 | Q1: [020]水利組合 | R1: [021]非農業者（人） | S1: [022]その他 | T1: [023]協定参加者の年齢区分別計 | U1: [024]参加者_39歳以下 | V1: [025]参加者_40～44歳 | W1: [026]参加者_45～49歳 | X1: [027]参加者_50～54歳 | Y1: [028]参加者_55～59歳 | Z1: [029]参加者_60～64歳 | AA1: [030]参加者_65～69歳 | AB1: [031]参加者_70～74歳 | AC1: [032]参加者_75～79歳 | AD1: [033]参加者_80歳以上 | AE1: [034]地域区分 | AF1: [035]協定締結面積総計 | AG1: [036]田_面積計 | AH1: [037]田_急傾斜 | AI1: [038]田_緩傾斜 | AJ1: [039]田_高齢化・耕作放棄率 | AK1: [040]田_小区画不整形 | AL1: [041]田_特認基準 | AM1: [042]田_交付対象外 | AN1: [043]畑_面積計 | AO1: [044]畑_急傾斜 | AP1: [045]畑_緩傾斜 | AQ1: [046]畑_高齢化・耕作放棄率 | AR1: [047]畑_特認基準 | AS1: [048]畑_交付対象外（田畑混在） | AT1: [049]畑_交付対象外（田畑混在以外） | AU1: [050]草地_面積計 | AV1: [051]草地_急傾斜 | AW1: [052]草地_緩傾斜 | AX1: [053]草地_草地比率の高い草地 | AY1: [054]草地_高齢化・耕作放棄率 | AZ1: [055]草地_特認基準 | BA1: [056]草地_交付対象外（田草地混在） | BB1: [057]草地_交付対象外（田草地混在以外） | BC1: [058]採草放牧地_面積計 | BD1: [059]採草放牧地_急傾斜 | BE1: [060]採草放牧地_緩傾斜 | BF1: [061]採草放牧地_特認基準 | BG1: [062]採草放牧地_交付対象外（田採草放牧地混在） | BH1: [063]採草放牧地_交付対象外（田採草放牧地混在以外) | BI1: [064]通常地域_面積計 | BJ1: [065]通常地域_田_面積計 | BK1: [066]通常地域_田_急傾斜 | BL1: [067]通常地域_田_緩傾斜 | BM1: [068]通常地域_田_高齢化耕作放棄率 | BN1: [069]通常地域_田_小区画不整形 | BO1: [070]通常地域_田_特認基準 | BP1: [071]通常地域_田_交付対象外 | BQ1: [072]通常地域_畑_面積計 | BR1: [073]通常地域_畑_急傾斜 | BS1: [074]通常地域_畑_緩傾斜 | BT1: [075]通常地域_畑_高齢化耕作放棄率 | BU1: [076]通常地域_畑_特認基準 | BV1: [077]通常地域_畑_交付対象外（田畑混在） | BW1: [078]通常地域_畑_交付対象外（田畑混在以外） | BX1: [079]通常地域_草地_面積計 | BY1: [080]通常地域_草地_急傾斜 | BZ1: [081]通常地域_草地_緩傾斜 | CA1: [082]通常地域_草地_草地比率の高い草地 | CB1: [083]通常地域_草地_高齢化耕作放棄率 | CC1: [084]通常地域_草地_特認基準 | CD1: [085]通常地域_草地_交付対象外（田草地混在） | CE1: [086]通常地域_草地_交付対象外（田草地混在以外） | CF1: [087]通常地域_採草放牧地_面積計 | CG1: [088]通常地域_採草放牧地_急傾斜 | CH1: [089]通常地域_採草放牧地_緩傾斜 | CI1: [090]通常地域_採草放牧地_特認基準 | CJ1: [091]通常地域_採草放牧地_交付対象外（田採草混在） | CK1: [092]通常地域_採草放牧地_交付対象外（田採草混在以外） | CL1: [093]特認地域_基準区分 | CM1: [094]特認地域_面積計 | CN1: [095]特認地域_田_面積計 | CO1: [096]特認地域_田_急傾斜 | CP1: [097]特認地域_田_緩傾斜 | CQ1: [098]特認地域_田_高齢化耕作放棄率 | CR1: [099]特認地域_田_小区画不整形 | CS1: [100]特認地域_田_特認基準 | CT1: [101]特認地域_田_交付対象外 | CU1: [102]特認地域_畑_面積計 | CV1: [103]特認地域_畑_急傾斜 | CW1: [104]特認地域_畑_緩傾斜 | CX1: [105]特認地域_畑_高齢化耕作放棄率 | CY1: [106]特認地域_畑_特認基準 | CZ1: [107]特認地域_畑_交付対象外（田畑混在） | DA1: [108]特認地域_畑_（田畑混在地以外） | DB1: [109]特認地域_草地_面積計 | DC1: [110]特認地域_草地_急傾斜 | DD1: [111]特認地域_草地_緩傾斜 | DE1: [112]特認地域_草地_草地比率の高い草地 | DF1: [113]特認地域_草地_高齢化耕作放棄率 | DG1: [114]特認地域_草地_特認基準 | DH1: [115]特認地域_草地_交付対象外（田草地混在） | DI1: [116]特認地域_草地_交付対象外（田草地混在以外） | DJ1: [117]特認地域_採草放牧地_面積計 | DK1: [118]特認地域_採草放牧地_急傾斜 | DL1: [119]特認地域_採草放牧地_緩傾斜 | DM1: [120]特認地域_採草放牧地_特認基準 | DN1: [121]特認地域_採草放牧地_交付対象外（田採草混在地） | DO1: [122]特認地域_採草放牧地_交付対象外（田採草混在地以外） | DP1: [123]本体交付金交付額 | DQ1: [124]うち国費 | DR1: [125]協定農用地の一部除外_面積計 | DS1: [126]協定農用地の一部除外_耕作未実施_計 | DT1: [127]協定農用地の一部除外_耕作未実施_耕作放棄 | DU1: [128]協定農用地の一部除外_耕作未実施_転用 | DV1: [131]協定農用地の一部除外_耕作未実施_その他 | DW1: [132]協定農用地の一部除外_耕作未実施_その他の内容 | DX1: [133]協定農用地の一部除外_復旧未実施 | DY1: [134]協定農用地の一部除外_死亡・病気・高齢 | DZ1: [135]協定農用地の一部除外_自然災害 | EA1: [136]協定農用地の一部除外_土地収用 | EB1: [137]協定農用地の一部除外_農業用施設 | EC1: [144]復旧_既荒廃農地 | ED1: [145]復旧_既荒廃農地_うち復旧済面積 | EE1: [146]復旧_既荒廃農地_田 | EF1: [147]復旧_既荒廃農地_畑 | EG1: [148]復旧_既荒廃農地_草地 | EH1: [149]復旧_自然災害 | EI1: [150]復旧_自然災害_うち復旧済面積 | EJ1: [151]協定に含めない管理すべき荒廃農地の管理面積 | EK1: [152]棚田加算_取組状況 | EL1: [153]棚田加算_加算面積_計 | EM1: [154]棚田加算_加算面積_田 | EN1: [155]棚田加算_加算面積_畑 | EO1: [156]棚田加算_加算金額 | EP1: [157]棚田加算_うち国費 | EQ1: [158]超急傾斜地棚田加算_取組状況 | ER1: [159]超急傾斜地棚田加算_加算面積_計 | ES1: [160]超急傾斜地棚田加算_加算面積_田 | ET1: [161]超急傾斜地棚田加算_加算面積_畑 | EU1: [162]超急傾斜地棚田加算_加算金額 | EV1: [163]超急傾斜地棚田加算_うち国費 | EW1: [164]棚田加算_目標_棚田等の保全 | EX1: [165]棚田加算_目標_棚田等の保全_目標年度 | EY1: [166]棚田加算_目標_棚田等の保全_達成状況 | EZ1: [167]棚田加算_目標_多面的機能の維持発揮 | FA1: [168]棚田加算_目標_多面的機能の維持発揮_目標年度 | FB1: [169]棚田加算_目標_多面的機能の維持発揮_達成状況 | FC1: [170]棚田加算_目標_棚田地域の振興 | FD1: [171]棚田加算_目標_棚田地域の振興_目標年度 | FE1: [172]棚田加算_目標_棚田地域の振興_達成状況 | FF1: [173]超急傾加算_取組状況 | FG1: [174]超急傾加算_加算面積_計 | FH1: [175]超急傾加算_加算面積_田 | FI1: [176]超急傾加算_加算面積_畑 | FJ1: [177]超急傾加算_加算金額 | FK1: [178]超急傾加算_うち国費 | FL1: [179]超急傾加算_目標_保全_法面の維持・補修 | FM1: [180]超急傾加算_目標_保全_耕作道、ほ場進入路等の維持 | FN1: [181]超急傾加算_目標_保全_作業足場の設置、ほ場進入路の改良等 | FO1: [182]超急傾加算_目標_保全_土壌流入、土壌流出の防止 | FP1: [183]超急傾加算_目標_保全_農薬散布等の施設の整備 | FQ1: [184]超急傾加算_目標_保全_共同防除体制の構築 | FR1: [185]超急傾加算_目標_保全_鳥獣害防止施設の維持 | FS1: [186]超急傾加算_目標_保全_鳥獣害防止施設の設置 | FT1: [187]超急傾加算_目標_保全_その他 | FU1: [188]超急傾加算_目標_保全_その他の内容 | FV1: [189]超急傾加算_目標_販売_共通パッケージの作成 | FW1: [190]超急傾加算_目標_販売_パンフレットの作成 | FX1: [191]超急傾加算_目標_販売_農産物の加工 | FY1: [192]超急傾加算_目標_販売_直売所等での販売 | FZ1: [193]超急傾加算_目標_販売_ブランド化 | GA1: [194]超急傾加算_目標_販売_景観作物の植栽 | GB1: [195]超急傾加算_目標_販売_環境に配慮した農業 | GC1: [196]超急傾加算_目標_販売_都市住民との交流 | GD1: [197]超急傾加算_目標_販売_施設の設置・運営 | GE1: [198]超急傾加算_目標_販売_棚田オーナー制度 | GF1: [199]超急傾加算_目標_販売_その他 | GG1: [200]超急傾加算_目標_販売_その他の内容 | GH1: [201]ネットワーク化加算_取組状況 | GI1: [202]ネットワーク化加算_加算面積計 | GJ1: [203]ネットワーク化加算_加算金額 | GK1: [204]ネットワーク化加算_うち国費 | GL1: [205]ネットワーク化加算_ネットワーク化集落数 | GM1: [206]ネットワーク化加算_統合集落数 | GN1: [207]ネットワーク化加算_人材確保数 | GO1: [208]ネットワーク化加算_集落内からの人材確保数 | GP1: [209]ネットワーク化加算_集落外からの人材確保数 | GQ1: [210]ネットワーク化加算_確保された人材が担う地域活動数 | GR1: [211]ネットワーク化加算_確保された人材が担う地域活動_集落協定組織の活動 | GS1: [212]ネットワーク化加算_確保された人材が担う地域活動_農業生産組織の活動 | GT1: [213]ネットワーク化加算_確保された人材が担う地域活動_加工・販売組織の活動 | GU1: [214]ネットワーク化加算_目標 | GV1: [215]ネットワーク加算_目標_目標年度 | GW1: [216]ネットワーク化加算_目標_達成状況 | GX1: [217]スマート農業加算_取組状況 | GY1: [218]スマート農業加算_加算面積計 | GZ1: [219]スマート農業加算_加算金額 | HA1: [220]スマート農業加算_うち国費 | HB1: [221]スマート農業加算_目標 | HC1: [222]スマート農業加算_目標年度 | HD1: [223]スマート農業加算_達成状況 | HE1: [224]集落機能強化加算の経過措置_取組状況 | HF1: [225]集落機能強化加算の経過措置_加算面積計 | HG1: [226]集落機能強化加算の経過措置_加算金額 | HH1: [227]集落機能強化加算の経過措置_うち国費 | HI1: [228]集落機能強化加算の経過措置_目標 | HJ1: [229]集落機能強化加算の経過措置_目標年度 | HK1: [230]集落機能強化加算の経過措置_達成状況 | HL1: [231]体制整備単価 | HM1: [232]基礎単価 | HN1: [233]交付金額（円） | HO1: [234]交付金額_うち国費 | HP1: [235]共同取組活動充当額 | HQ1: [236]共同取組活動充当割合 | HR1: [237]個人配分額 | HS1: [238]前年度末積立等残高 | HT1: [239]今年度交付額＋前年度末積立等残高 | HU1: [240]個人配分支出総額 | HV1: [241]共同取組活動支出総額 | HW1: [242]役員報酬 | HX1: [243]研修会費 | HY1: [244]道水路管理費 | HZ1: [245]農地管理費 | IA1: [246]鳥獣害防止対策費 | IB1: [247]共同利用機械購入等費 | IC1: [248]共同利用施設整備等費 | ID1: [249]多面的機能増進活動費 | IE1: [250]土地利用調整関係費 | IF1: [251]法人設立関係費 | IG1: [252]農産物等販売促進費 | IH1: [253]都市農村交流促進関係費 | II1: [254]その他 | IJ1: [255]積立等_計 | IK1: [256]繰越 | IL1: [257]耕作放棄防止活動（項目数） | IM1: [258]多面的機能支払交付金と同一施設 | IN1: [259]賃借権設定・農作業の委託 | IO1: [260]既荒廃農地復旧、林地化、畜産利用 | IP1: [261]既荒廃農用地の保全管理 | IQ1: ［262］農地の法面管理 | IR1: [263]柵、ネットの設置等鳥獣被害防止 | IS1: [265]簡易な基盤整備 | IT1: [266]担い手の確保 | IU1: [267]地場農産物の加工・販売 | IV1: [268]その他 | IW1: [269]道・水路等の管理活動（項目数） | IX1: [270]水路の管理 | IY1: [271]農道の管理 | IZ1: [272]その他の施設の管理 | JA1: [273]多面的機能の維持・増進活動（項目数） | JB1: [274]周辺林地の下草刈 | JC1: [275]土壌流亡に配慮した営農 | JD1: [277]市民農園等の開設・運営 | JE1: [278]体験民宿（グリーン・ツーリズム） | JF1: [279]景観作物の作付け | JG1: [280]魚類・昆虫類の保護 | JH1: [281]鳥類の餌場の確保 | JI1: [282]粗放的畜産 | JJ1: [283]堆きゅう肥施肥、拮抗作物利用、合鴨・鯉利用、輪作徹底、緑肥作付 | JK1: [284]その他活動 | JL1: [285]集落マスタープラン目指すべき将来像のチェック | JM1: [286]将来にわたり農業生産活動等が可能となる集落内の実施体制構築 | JN1: [287]協定の担い手となる新たな人材の育成・確保 | JO1: [288]協定参加者それぞれが、作物生産、加工・直売等様々な工夫により再生可能な所得を確保 | JP1: [289]その他 | JQ1: [290]その他の内容 | JR1: [291]活動方策のチェック | JS1: [292]機械・農作業の共同化等営農組織の育成 | JT1: [293]高付加価値型農業 | JU1: [294]農業生産条件の強化 | JV1: [295]担い手への農地集積 | JW1: [296]担い手への農作業の委託 | JX1: [297]新規就農者等による農業生産 | JY1: [298]地場産農産物等の加工・販売 | JZ1: [299]消費・出資の呼び込み | KA1: [300]共同で支え合う集団的かつ持続的な体制整備 | KB1: [301]その他 | KC1: [302]その他の内容 | KD1: [303]ネットワーク化活動計画の作成状況 | KE1: [304]体制整備単価取組_ネットワーク化 | KF1: [305]体制整備単価取組_統合 | KG1: [306]体制整備単価取組_多様な組織の参画 | KH1: [302]協定農用地の将来像の合計 | KI1: [303]管理者が引き続き耕作 | KJ1: [304]後継者が耕作を継承 | KK1: [305]担い手等に引き受けてもらう（受け手が決まっている） | KL1: [306]担い手等に引き受けてもらうことを希望（受け手が決まっていない） | KM1: [307]中間管理機構への貸し付けを希望 | KN1: [308]草刈り等管理のみ | KO1: [309]その他 | KP1: [310]協定農用地の将来像を踏まえた集落の現状_該当事項の合計 | KQ1: [311]担い手が確保できており、耕作を継続 | KR1: [312]担い手が確保できているが、全ての委託希望は受けられない | KS1: [313]担い手が確保できていない | KT1: [314]耕作を継続したいが、耕作条件の悪い農地がある | KU1: [315]耕作を継続したいが、農業所得が低い | KV1: [316]耕作を継続したいが、法面や水路・農道等の管理が過重な負担となっている | KW1: [317]鳥獣被害が深刻であり、耕作意欲が減退している | KX1: [318]集落の自治（コミュニティ）機能が低下しており、生活に支障・不安が生じている | LB1: [319]その他 | LC1: [320]その他の内容 | LD1: [321]集落の現状を踏まえた対応の方向性_該当事項の合計 | LE1: [322]耕作放棄の懸念はなく、集落の課題もないことから、対策は不要 | LF1: [323]協定内で担い手を育成・確保 | LG1: [324]協定外で担い手を確保 | LH1: [325]基盤整備等により耕作条件を改善 | LI1: [326]農産物の高付加価値化により所得の向上を図る | LJ1: [327]新たな作物の導入により所得の向上を図る | LK1: [328]省力化技術の導入や外注化等により労働負担の軽減を図る | LL1: [329]耕作継続が困難な農用地の林地化 | LM1: [330]放牧利用による農用地の管理 | LN1: [331]鳥獣被害防止対策の実施 | LO1: [332]集落の自治（コミュニティ）機能の強化 | LP1: [333]その他 | LQ1: [334]その他の内容 | LR1: [335]具体的な対策に向けた検討_該当事項の合計 | LS1: [336]特に懸念はなく、協定参加者で実施していく | LT1: [337]協定参加者だけでは検討が困難であり外部（県・市町村含む）からの助力を得たい | LU1: [338]他の協定との広域化を考えたい | LV1: [339]中山間地域等直接支払交付金の加算措置を活用したい | LW1: [340]対策に活用可能な補助事業等を紹介して欲しい | LX1: [341]その他 | LY1: [342]その他の内容 | LZ1: [343]農業生産活動等の継続のための支援体制_該当事項の合計 | MA1: [344]農地所有適格法人が支援する | MB1: [345]JAが支援する | MC1: [346]集落営農組織が支援する | MD1: [347]農業者が支援する | ME1: [348]協定参加者で役割分担しつつ、農用地の維持管理を行う | MF1: [349]その他 | MG1: [350]その他の内容 | MH1: [351]備考欄 | MN1: [326]農産物の高付加価値化により所得の向上を図る
A2: =SUBTOTAL(2,A15:A3562) -> 0 | H2: =SUBTOTAL(3,H15:H15) -> 1 | I2: =SUBTOTAL(2,I15:I3551) -> 0 | J2: =SUBTOTAL(2,J15:J3551) -> 0 | K2: =SUBTOTAL(9,K15:K15) ->  | T2: =SUBTOTAL(9,T15:T15) ->  | U2: =SUBTOTAL(9,U15:U15) ->  | AF2: =SUBTOTAL(9,AF15:AF3551) ->  | BM2: =SUBTOTAL(9,BM15:BM3551) ->  | BQ2: =SUBTOTAL(9,BQ15:BQ3551) ->  | BR2: =SUBTOTAL(9,BR15:BR3551) ->  | CL2: 0 | CR2: =SUBTOTAL(9,CR15:CR3551) ->  | DQ2: 0 | DR2: 0 | DS2: 0 | DT2: 0 | DU2: 0 | DV2: 0 | DW2: =SUBTOTAL(3,DW15:DW3551) -> 0 | DX2: =SUBTOTAL(9,DX15:DX3551) -> 0 | DY2: 0 | DZ2: 0 | EA2: 0 | EB2: 0 | ED2: 0 | EI2: 0 | EP2: 0 | EQ2: =SUBTOTAL(9,EQ15:EQ3551) ->  | ER2: =SUBTOTAL(9,ER15:ER3551) ->  | ES2: =SUBTOTAL(9,ES15:ES3551) ->  | EV2: 0 | EW2: =SUBTOTAL(3,EW15:EW3551) -> 1 | EX2: 1 | EY2: 0 | EZ2: 1 | FA2: 1 | FB2: 0 | FC2: 1 | FD2: 1 | FE2: 0 | FF2: =SUBTOTAL(9,FF15:FF3551) ->  | FK2: 0 | FL2: 0 | FM2: 0 | FN2: 0 | FO2: 0 | FP2: 0 | FQ2: 0 | FR2: 0 | FS2: 0 | FT2: 0 | FU2: =SUBTOTAL(3,FU15:FU3551) -> 0 | FV2: =SUBTOTAL(9,FV15:FV3551) -> 0 | FW2: 0 | FX2: 0 | FY2: 0 | FZ2: 0 | GA2: 0 | GB2: 0 | GC2: 0 | GD2: 0 | GE2: 0 | GF2: 0 | GG2: =SUBTOTAL(3,GG15:GG3551) -> 0 | GH2: =SUBTOTAL(9,GH15:GH3551) ->  | GK2: 0 | GL2: =SUBTOTAL(9,GL15:GL3551) ->  | GN2: 0 | GO2: 0 | GP2: 0 | GQ2: 0 | GR2: 0 | GS2: 0 | GT2: 0 | GU2: =SUBTOTAL(3,GU15:GU3551) -> 1 | GV2: =SUBTOTAL(3,GV15:GV3551) -> 1 | GW2: =SUBTOTAL(3,GW15:GW3551) -> 0 | GX2: =SUBTOTAL(9,GX15:GX3551) ->  | GY2: =SUBTOTAL(9,GY15:GY3551) ->  | GZ2: =SUBTOTAL(9,GZ15:GZ3551) ->  | HA2: =SUBTOTAL(9,HA15:HA3551) -> 0 | HB2: =SUBTOTAL(3,HB15:HB3551) -> 1 | HC2: =SUBTOTAL(3,HC15:HC3551) -> 1 | HD2: =SUBTOTAL(3,HD15:HD3551) -> 0 | HE2: =SUBTOTAL(9,HE15:HE3551) ->  | HF2: =SUBTOTAL(9,HF15:HF3551) ->  | HG2: =SUBTOTAL(9,HG15:HG3551) ->  | HH2: =SUBTOTAL(9,HH15:HH3551) -> 0 | HI2: =SUBTOTAL(3,HI15:HI3551) -> 1 | HJ2: =SUBTOTAL(3,HJ15:HJ3551) -> 1 | HK2: =SUBTOTAL(3,HK15:HK3551) -> 0 | HL2: =SUBTOTAL(9,HL15:HL3551) ->  | HM2: =SUBTOTAL(9,HM15:HM246551) ->  | HN2: =SUBTOTAL(9,HN15:HN246551) ->  | HO2: =SUBTOTAL(9,HO15:HO246551) -> 0 | HP2: =SUBTOTAL(9,HP15:HP246551) ->  | HQ2: =HP2/HN2 ->  | HR2: =SUBTOTAL(9,HR15:HR3551) ->  | HS2: 0 | HU2: 0 | II2: 0 | IJ2: 0 | IK2: 0 | IL2: =COUNTIF(IL15:IL3551,">0") -> 0 | IM2: =SUBTOTAL(9,IM15:IM3551) ->  | IW2: =COUNTIF(IW15:IW3551,">0") -> 0 | IX2: =SUBTOTAL(9,IX15:IX3551) ->  | IY2: =SUBTOTAL(9,IY15:IY3551) ->  | IZ2: =SUBTOTAL(9,IZ15:IZ3551) ->  | JA2: =COUNTIF(JA15:JA3551,">0") -> 0 | JB2: =SUBTOTAL(9,JB15:JB3551) ->  | JL2: =COUNTIF(JL15:JL3551,">0") -> 0 | JM2: =SUBTOTAL(9,JM15:JM3551) ->  | JN2: =SUBTOTAL(9,JN15:JN3551) ->  | JO2: =SUBTOTAL(9,JO15:JO3551) ->  | JP2: =SUBTOTAL(9,JP15:JP3551) ->  | JQ2: =SUBTOTAL(9,JQ15:JQ3551) ->  | JR2: =COUNTIF(JR15:JR3551,">0") -> 0 | JS2: =SUBTOTAL(9,JS15:JS3551) ->  | KC2: =SUBTOTAL(3,KC15:KC3551) -> 1 | KD2: =COUNTIF(KD15:KD3551,">0") -> 0 | KE2: =COUNTIF(KE15:KE3551,">0") -> 0 | KF2: =COUNTIF(KF15:KF3551,">0") -> 0 | KG2: =COUNTIF(KG15:KG3551,">0") -> 0 | KH2: =SUBTOTAL(9,KH15:KH3551) ->  | KQ2: =SUBTOTAL(9,KQ15:KQ3551) ->  | KR2: =SUBTOTAL(3,KR15:KR3551) -> 1 | LC2: =SUBTOTAL(3,LC15:LC3551) -> 1 | LD2: =SUBTOTAL(9,LD15:LD3551) ->  | LH2: =SUBTOTAL(9,LH15:LH3551) ->  | LI2: 0 | LQ2: =SUBTOTAL(3,LQ15:LQ3551) -> 1 | LR2: =SUBTOTAL(9,LR15:LR3551) ->  | LY2: =SUBTOTAL(3,LY15:LY3551) -> 1 | LZ2: =SUBTOTAL(9,LZ15:LZ3551) ->  | MG2: =SUBTOTAL(3,MG15:MG3551) -> 1 | MH2: =SUBTOTAL(3,MH15:MH3551) -> 1 | MN2: =SUBTOTAL(9,MN15:MN3551) -> 0
A4: ①協定識別事項 | K4: ②協定参加者 | AE4: ③協定締結面積 | EK4: ④加算措置（加算面積、加算金額） | HL4: ⑤交付金額 | IL4: ⑥活動内容（全協定共通） | KD4: ⑦活動内容（体制整備単価） | OB4: 備考欄
A5: 協定識別コード | B5: 都道府県名 | C5: 市町村名 | D5: 地方公共団体コード | E5: 個別協定名 | G5: 協定識別コード重複確認セル | H5: 協定の所在地 | I5: 協定認定年度（交付開始年度） | J5: 複数の市町村にまたがる協定の事項 | K5: 協定参加者総計 | AE5: 地域区分 | AF5: 協定締結面積総計 | AG5: 通常・特認地域別、地目別及び交付基準別協定締結面積 | DP5: 本体交付金交付額（円） | DR5: 協定農用地の一部を除外した場合の理由、面積 | EC5: 協定締結面積［50］うち既荒廃農地の復旧面積 | EH5: 協定締結面積［50］うち自然災害を受けている農用地の復旧面積 | EJ5: 協定に含めない管理すべき荒廃農地の管理面積 | EK5: Ⅰ 棚田地域振興活動加算 | FF5: Ⅱ 超急傾斜農地保全管理加算 | GH5: Ⅲ ネットワーク化加算 | GX5: Ⅳ スマート農業加算 | HE5: Ⅴ 集落機能強化加算の経過措置 | HL5: 交付単価区分 | HN5: 交付金額（円） | HR5: 個人配分額（円） | HS5: 交付金の使途 | IL5: 農業生産活動等として取り組むべき事項 | JL5: 集落マスタープラン | KD5: 農業生産活動等の体制整備として取り組むべき事項
F6: 協定整理 番号 | M6: 農業者（人） | N6: 農業法人数 | O6: 農業生産組織数 | P6: 土地改良区 | Q6: 水利組合 | R6: 非農業者（人） | S6: その他 | T6: 協定参加者の年齢区分別計 | U6: 39歳以下 | V6: 40～44歳 | W6: 45～49歳 | X6: 50～54歳 | Y6: 55～59歳 | Z6: 60～64歳 | AA6: 65～69歳 | AB6: 70～74歳 | AC6: 75～79歳 | AD6: 80歳以上 | AG6: 通常地域+特認地域 | DQ6: うち国費（円） | DR6: 協定農用地の一部除外面積の合計 | DS6: 交付金の返還を伴うもの | DY6: 交付金の返還が免責されるもの | EQ6: （超急傾斜地棚田加算）（田1/10以上、畑20度以上） | HO6: うち国費 | HP6: 共同取組活動充当額（円） | HS6: 前年度末積立等残額（円） | HT6: 今年度交付額と前年度末積立等残高の計（円） | HU6: 個人配分支出総額（円） | HV6: 共同取組活動支出総額（円） | HW6: 役員報酬 | HX6: 研修会等費 | HY6: 道・水路管理費 | HZ6: 農地管理費 | IA6: 鳥獣被害防止対策費 | IB6: 共同利用機械購入等費 | IC6: 共同利用施設整備等費 | ID6: 多面的機能増進活動費 | IE6: 土地利用調整関係費 | IF6: 法人設立関係費 | IG6: 農産物等の販売促進関係費 | IH6: 都市住民との交流促進関係費 | II6: その他 | IJ6: 積立等計 | IL6: Ⅰ必須事項（農業生産活動等） | JA6: Ⅱ選択的必須事項（多面的機能を増進する活動） | JL6: 目指すべき将来像のチェック | JM6: 目指すべき将来像 | JR6: 活動方策のチェック | JS6: 将来像を実現するための活動方策 | KD6: ネットワーク化活動計画の作成状況 | KE6: 1-3.体制整備のために行おうとする取組 | KH6: 2.ネットワーク化の計画 | LQ6: 3.統合の計画 | MO6: 4.多様な組織の参画
L7: うち 中核的リーダー（人） | AG7: 田面積計 | AN7: 畑面積計 | AU7: 草地面積計 | BC7: 採草放牧地面積計 | BI7: 通常地域 | CL7: 特認地域 | EC7: 既荒廃農地の復旧面積計 | EH7: 自然災害を受けている農用地の復旧面積計 | EK7: 取組状況 （実施している場合：1） | EL7: 加算面積 | EO7: 加算金額（円） | EQ7: 取組状況 （実施している場合：1） | ER7: 加算面積 | EU7: 加算金額（円） | EW7: 棚田等の保全 | EZ7: 棚田等の保全を通じた多面にわたる機能の維持・発揮 | FC7: 棚田を核とした棚田地域の振興 | FF7: 取組状況 （実施している場合：1） | FG7: 加算面積計 | FJ7: 加算金額 | FL7: 超急傾斜農地の保全 | FV7: 超急傾斜農地で生産される農産物の販売促進等 | GH7: 取組状況 （実施している場合：1） | GI7: 加算面積計 | GJ7: 加算金額 | GL7: ネットワーク化する集落協定数 | GM7: 統合する集落協定数 | GN7: 人材確保者数 | GQ7: 確保された人材が担う地域活動 | GU7: ネットワーク化・統合等により実現する農業生産活動等の継続のための取組 | GX7: 取組状況 （実施している場合：1） | GY7: 加算面積計 | GZ7: 加算金額 | HB7: スマート農業による作業の省力化・効率化を図る取組 | HE7: 取組状況 （実施している場合：1） | HF7: 加算面積計 | HG7: 加算金額 | HI7: 新たな人材の確保に関する取組又は集落機能を強化する取組 | HL7: 体制整備単価 | HM7: 基礎 単価 | HQ7: 共同取組活動充当割合（％） | IK7: うち繰越 | IL7: １ 耕作放棄の防止等の活動 | IW7: 適正な道・水路等の管理活動（項目数） | IX7: ２ 水路、農道等の管理活動 | JA7: 適正な多面的機能の維持・増進活動（項目数） | JB7: ① 周辺林地の下草刈 | JC7: ② 棚田オーナー制度、市民農園等の開設・運営 | JD7: ③ 景観作物の作付け | JE7: ④土壌流亡に配慮した営農 | JF7: ⑤ 体験民宿（グリーン・ツーリズム） | JG7: ⑥ 魚類・昆虫類の保護 | JH7: ⑦ 鳥類の餌場の確保 | JI7: ⑧ 粗放的畜産 | JJ7: ⑨ 堆きゅう肥の施肥、拮抗作物の利用、合鴨・鯉の利用、輪作の徹底、緑肥作物の作付 | JK7: ⑩ その他活動 | JM7: ① 将来にわたり農業生産活動等が可能となる集落内の実施体制構築 | JN7: ② 協定の担い手となる新たな人材の育成・確保 | JO7: ③ 協定参加者それぞれが、作物生産、加工・直売等様々な工夫により再生可能な所得を確保 | JP7: ④ その他 | JS7: ① 機械・農作業の共同化等営農組織の育成 | JT7: ② 高付加価値型農業 | JU7: ③ 農業生産条件の強化 | JV7: ④ 担い手への農地集積 | JW7: ⑤ 担い手への農作業の委託 | JX7: ⑥ 新規就農者等による農業生産 | JY7: ⑦ 地場産農産物等の加工・販売 | JZ7: ⑧ 消費・出資の呼び込み | KA7: ⑨ 共同で支え合う集団的かつ持続的な体制整備 | KB7: ⑩ その他 | KD7: 「1」：集落協定においてネットワーク化活動計画を作成中 「2」：ネットワーク化活動計画を市町村に提出済み | KE7: ①ネットワーク化 | KF7: ②統合 | KG7: ③多様な組織の参画 | KH7: ネットワークの名称（予定） | KI7: ネットワーク化に参加する集落協定 | KK7: ネットワーク化で解決しようとする課題 | KS7: ネットワーク化により連携して実施する活動 | LD7: 連携方法 | LI7: 工程 | LJ7: ネットワーク化後の統合予定 | LQ7: 統合後の集落協定の名称（予定） | LR7: 統合に参加する集落協定 | LT7: 統合で解決しようとする課題 | MB7: 統合により体制を強化したい活動 | MN7: 工程 | MO7: 農業者団体以外の組織 | NJ7: 非農業者 | NM7: 多様な組織等の参画で解決しようとする課題 | NS7: 多様な組織等の参画により連携して実施する活動
AH8: 急傾斜 | AI8: 緩傾斜 | AJ8: 高齢化率・耕作放棄率 | AK8: 小区画不整形 | AL8: 特認基準 | AM8: 交付対象外 | AO8: 急傾斜 | AP8: 緩傾斜 | AQ8: 高齢化率・耕作放棄率 | AR8: 特認基準 | AS8: 交付対象外（田畑混在地） | AT8: 交付対象外（田畑混在地以外） | AV8: 急傾斜 | AW8: 緩傾斜 | AX8: 草地比率の高い草地 | AY8: 高齢化率・耕作放棄率 | AZ8: 特認基準 | BA8: 交付対象外（田草地混在地） | BB8: 交付対象外（田草地混在地以外） | BD8: 急傾斜 | BE8: 緩傾斜 | BF8: 特認基準 | BG8: 交付対象外（田採草放牧地混在） | BH8: 交付対象外（田採草放牧地混在以外） | BI8: 通常地域面積計 | BJ8: 田面積計（通常地域） | BK8: 通常地域 田 交付基準別 | BQ8: 畑面積計（通常地域） | BR8: 通常地域 畑 交付基準別 | BX8: 草地面積計（通常地域） | BY8: 通常地域 草地 交付基準別 | CF8: 採草放牧地面積計（通常地域） | CG8: 通常地域 採草放牧地 交付基準別 | CL8: 特認地域の基準区分 | CM8: 特認地域面積計 | CN8: 田面積計（特認地域） | CO8: 特認地域 田 交付基準別 | CU8: 畑面積計（特認地域） | CV8: 特認地域 畑 交付基準別 | DB8: 草地面積計（特認地域） | DC8: 特認地域 草地 交付基準別 | DJ8: 採草放牧地面積計（特認地域） | DK8: 特認地域 採草放牧地 交付基準別 | DS8: 耕作又は維持管理が行われなかった | DX8: 荒廃農地等の復旧が行われなかった | DY8: 農業者の死亡、病気、高齢等 | DZ8: 自然災害 | EA8: 土地収用法に基づく収容、使用 | EB8: 農業用施設用地等への転用 | ED8: うち復旧済面積 | EE8: 復旧面積（計画） | EI8: うち復旧済面積 | EM8: 地目別面積 | EP8: うち国費（円） | ES8: 地目別面積 | EV8: うち国費（円） | FH8: 地目別面積 | FK8: うち国費 | FL8: 法面の維持・補修 | FM8: 耕作道、ほ場進入路等の維持 | FN8: 作業足場の設置、ほ場進入路の改良等 | FO8: 土壌流入、土壌流出の防止 | FP8: 農薬散布等の施設の整備 | FQ8: 共同防除体制の構築 | FR8: 鳥獣害防止施設の維持 | FS8: 鳥獣害防止施設の設置 | FT8: その他 | FV8: 共通パッケージの作成 | FW8: パンフレットの作成 | FX8: 農産物の加工 | FY8: 直売所等での販売 | FZ8: ブランド化 | GA8: 景観作物の植栽 | GB8: 環境に配慮した農業 | GC8: 都市住民との交流 | GD8: 施設の設置・運営 | GE8: 棚田オーナー制度 | GF8: その他 | GK8: うち国費 | GO8: 集落内からの人材確保者数 | GP8: 集落外からの人材確保者数 | GR8: 集落協定組織の活動 | GS8: 農業生産組織の活動 | GT8: 加工・販売組織の活動 | HA8: うち国費 | HH8: うち国費 | IL8: 適正な耕作放棄の防止等の活動（項目数） | IM8: 多面的機能支払交付金と同一施設 | IN8: ① 賃借権設定・農作業の委託 | IO8: ② 既荒廃農用地の復旧・林地化・畜産的利用 | IP8: ③ 既荒廃農用地の保全管理 | IQ8: ④ 農地の法面管理 | IR8: ⑤ 柵、ネットの設置等鳥獣被害防止 | IS8: ⑥ 簡易な基盤整備 | IT8: ⑦ 担い手の確保 | IU8: ⑧ 地場農産物の加工・販売 | IV8: ⑨ その他（土地改良事業、災害復旧、地目変更等） | IX8: ① 水路の管理 | IY8: ② 農道の管理 | IZ8: ③ その他の施設の管理 | JQ8: その他の内容 | KC8: その他の内容 | KI8: ネットワーク化する協定数（自協定含む） | KJ8: 協定面積計（自協定含む） | KK8: ①リーダーの人材不足 | KL8: ②事務担当者の人材不足 | KM8: ③共同取組活動参加者の不足 | KN8: ④農業の担い手の人材不足 | KO8: ⑤農作業機械や施設の不足 | KP8: ⑥知見や技術の不足 | KQ8: ⑦その他 | KS8: ①事務の一元化（共同事務局の設置や 外部委託） | KT8: ②農地保全（草刈り、荒廃防止活動 等） | KU8: ③水路・農道等の維持管理 | KV8: ④機械・施設の共同利用 | KW8: ⑤農作業の共同化 | KX8: ⑥農業の担い手育成 | KY8: ⑦地場農産物の加工・販売 | KZ8: ⑧鳥獣害対策 | LA8: ⑨多面的機能を増進する活動 | LB8: ⑩その他 | LD8: ①協議会型 | LE8: ②活動連携型 | LF8: ③共同委託型 | LG8: ⑩その他 | LI8: ネットワーク化により連携して実施する活動の開始時期 | LJ8: ①第６期対策期間中（令和７年度～令和11 年度）での統合を検討する | LK8: ②第６期対策終了後の令和12 年度以降での統合を検討する | LL8: ③時期は未定だが将来的に統合を検討する | LM8: ④未定 | LN8: ⑤統合は必要ないと考えている | LO8: ⑥その他 | LR8: 統合する協定数（自協定含む） | LS8: 協定面積計（自協定含む） | LT8: ①リーダーの人材不足 | LU8: ②事務担当者の人材不足 | LV8: ③共同取組活動参加者の不足 | LW8: ④農業の担い手の人材不足 | LX8: ⑤農作業機械や施設の不足 | LY8: ⑥知見や技術の不足 | LZ8: ⑦その他 | MB8: ①リーダー等の人材確保 | MC8: ②事務局機能の強化 | MD8: ③農地保全（草刈り、荒廃防止活動 等） | ME8: ④水路・農道等の維持管理 | MF8: ⑤機械・施設の共同利用 | MG8: ⑥農作業の共同化 | MH8: ⑦農業の担い手育成 | MI8: ⑧地場農産物の加工・販売 | MJ8: ⑨鳥獣害対策 | MK8: ⑩多面的機能を増進する活動 | ML8: ⑪その他 | MN8: 統合の時期 | MO8: 参画組織数計 | MP8: 集落協定の構成員の組織 | MZ8: 別途協定等を締結 | NJ8: 非農業者数 | NM8: ①事務担当者の人材不足 | NN8: ②共同取組活動参加者の不足 | NO8: ③農業作業の人材不足 | NP8: ④知見や技術の不足 | NQ8: ⑥その他 | NS8: ①事務の適切な実施 | NT8: ②農地保全（草刈り、荒廃防止活動 等） | NU8: ③水路・農道等の維持管理 | NV8: ④農作業 | NW8: ⑤地場農産物の加工・販売 | NX8: ⑥鳥獣害対策 | NY8: ⑦多面的機能を増進する活動 | NZ8: ⑧その他
BK9: 急傾斜 | BL9: 緩傾斜 | BM9: 高齢化率・耕作放棄率 | BN9: 小区画不整形 | BO9: 特認基準 | BP9: 交付対象外 | BR9: 急傾斜 | BS9: 緩傾斜 | BT9: 高齢化率・耕作放棄率 | BU9: 特認基準 | BV9: 交付対象外(田畑混在地) | BW9: 交付対象外(田畑混在地以外) | BY9: 急傾斜 | BZ9: 緩傾斜 | CA9: 草地比率の高い草地 | CB9: 高齢化率・耕作放棄率 | CC9: 特認基準 | CD9: 交付対象外(田草地混在地) | CE9: 交付対象外(田草地混在地以外) | CG9: 急傾斜 | CH9: 緩傾斜 | CI9: 特認基準 | CJ9: 交付対象外（田採草放牧地混在） | CK9: 交付対象外（田採草放牧地混在以外） | CO9: 急傾斜 | CP9: 緩傾斜 | CQ9: 高齢化率・耕作放棄率 | CR9: 小区画不整形 | CS9: 特認基準 | CT9: 交付対象外 | CV9: 急傾斜 | CW9: 緩傾斜 | CX9: 高齢化率・耕作放棄率 | CY9: 特認基準 | CZ9: 交付対象外(田畑混在地) | DA9: 交付対象外(田畑混在地以外 | DC9: 急傾斜 | DD9: 緩傾斜 | DE9: 草地比率の高い草地 | DF9: 高齢化率・耕作放棄率 | DG9: 特認基準 | DH9: 交付対象外(田草地混在地) | DI9: 交付対象外(田草地混在地以外) | DK9: 急傾斜 | DL9: 緩傾斜 | DM9: 特認基準 | DN9: 交付対象外（田採草放牧地混在地） | DO9: 交付対象外（田採草放牧地混在地以外） | DT9: 耕作放棄によるもの | DU9: 転用によるもの | DV9: その他 | EE9: 田面積 | EF9: 畑面積 | EG9: 草地面積 | EM9: 田面積 | EN9: 畑面積 | ES9: 田面積 | ET9: 畑面積 | EW9: 目標 | EX9: 目標年度 | EY9: 達成状況 | EZ9: 目標 | FA9: 目標年度 | FB9: 達成状況 | FC9: 目標 | FD9: 目標年度 | FE9: 達成状況 | FH9: 田面積 | FI9: 畑面積 | FU9: その他の内容 | GG9: その他の内容 | GU9: 目標 | GV9: 目標年度 | GW9: 達成状況 | HB9: 目標 | HC9: 目標年度 | HD9: 達成状況 | HI9: 目標 | HJ9: 目標年度 | HK9: 達成状況 | KR9: その他の内容 | LC9: その他の内容 | LH9: その他の内容 | LP9: その他の内容 | MA9: その他の内容 | MM9: その他の内容 | MP9: 集落協定の構成員の組織数 | MQ9: 自治会・町内会 | MR9: 地域づくり協議会・地域運営組織 | MS9: 社会福祉協議会 | MT9: 企業 | MU9: NPO | MV9: 学校 （小学校、中学校、高校、大学） | MW9: 土地改良区 | MX9: 多面的機能支払活動組織 （保全会） | MY9: その他 | MZ9: 別途協定等を締結する組織数 | NA9: 自治会・町内会 | NB9: 地域づくり協議会・地域運営組織 | NC9: 社会福祉協議会 | ND9: 企業 | NE9: NPO | NF9: 学校 （小学校、中学校、高校、大学） | NG9: 土地改良区 | NH9: 多面的機能支払活動組織 （保全会） | NI9: その他 | NK9: 集落協定の構成員のうち非農業者 | NL9: 別途協定等を締結した組織の構成員のうち非農業者 | NR9: その他の内容 | OA9: その他の内容
DW10: その他の内容
A13: 1 | B13: =A13+1 -> 2 | C13: =B13+1 -> 3 | D13: 4 | E13: 5 | F13: 6 | H13: =F13+1 -> 7 | I13: =H13+1 -> 8 | J13: =I13+1 -> 9 | K13: =J13+1 -> 10 | L13: =K13+1 -> 11 | M13: =L13+1 -> 12 | N13: =M13+1 -> 13 | O13: 14 | P13: 15 | Q13: 16 | R13: 17 | S13: 18 | T13: 19 | U13: =T13+1 -> 20 | V13: =U13+1 -> 21 | W13: 22 | X13: 23 | Y13: 24 | Z13: 25 | AA13: 26 | AB13: 27 | AC13: 28 | AD13: 29 | AE13: =AD13+1 -> 30 | AF13: =AE13+1 -> 31 | AG13: =AF13+1 -> 32 | AH13: 33 | AI13: 34 | AJ13: 35 | AK13: 36 | AL13: 37 | AM13: 38 | AN13: 39 | AO13: 40 | AP13: 41 | AQ13: 42 | AR13: 43 | AS13: 44 | AT13: 45 | AU13: 46 | AV13: 47 | AW13: 48 | AX13: 49 | AY13: 50 | AZ13: 51 | BA13: 52 | BB13: 53 | BC13: 54 | BD13: 55 | BE13: 56 | BF13: 57 | BG13: 58 | BH13: 59 | BI13: 60 | BJ13: 61 | BK13: 62 | BL13: 63 | BM13: 64 | BN13: 65 | BO13: 66 | BP13: 67 | BQ13: =BP13+1 -> 68 | BR13: =BQ13+1 -> 69 | BS13: 70 | BT13: 71 | BU13: 72 | BV13: 73 | BW13: 74 | BX13: 75 | BY13: 76 | BZ13: 77 | CA13: 78 | CB13: 79 | CC13: 80 | CD13: 81 | CE13: 82 | CF13: 83 | CG13: 84 | CH13: 85 | CI13: 86 | CJ13: 87 | CK13: 88 | CL13: 89 | CM13: 90 | CN13: 91 | CO13: 92 | CP13: 93 | CQ13: 94 | CR13: 95 | CS13: 96 | CT13: 97 | CU13: 98 | CV13: 99 | CW13: 100 | CX13: 101 | CY13: 102 | CZ13: 103 | DA13: 104 | DB13: 105 | DC13: 106 | DD13: 107 | DE13: 108 | DF13: 109 | DG13: 110 | DH13: 111 | DI13: 112 | DJ13: 113 | DK13: 114 | DL13: 115 | DM13: 116 | DN13: 117 | DO13: 118 | DP13: 119 | DQ13: 120 | DR13: =DQ13+1 -> 121 | DS13: =DR13+1 -> 122 | DT13: =DS13+1 -> 123 | DU13: 124 | DV13: =DU13+1 -> 125 | DW13: 126 | DX13: 127 | DY13: 128 | DZ13: 129 | EA13: 130 | EB13: 131 | EC13: =EB13+1 -> 132 | ED13: =EC13+1 -> 133 | EE13: 134 | EF13: 135 | EG13: 136 | EH13: 137 | EI13: 138 | EJ13: 139 | EK13: =EJ13+1 -> 140 | EL13: =EK13+1 -> 141 | EM13: 142 | EN13: 143 | EO13: 144 | EP13: =EO13+1 -> 145 | EQ13: =EP13+1 -> 146 | ER13: =EQ13+1 -> 147 | ES13: 148 | ET13: 149 | EU13: 150 | EV13: =EU13+1 -> 151 | EW13: =EV13+1 -> 152 | EX13: =EW13+1 -> 153 | EY13: =EX13+1 -> 154 | EZ13: =EY13+1 -> 155 | FA13: 156 | FB13: 157 | FC13: 158 | FD13: 159 | FE13: 160 | FF13: 161 | FG13: 162 | FH13: 163 | FI13: 164 | FJ13: 165 | FK13: 166 | FL13: =FK13+1 -> 167 | FM13: =FL13+1 -> 168 | FN13: 169 | FO13: 170 | FP13: 171 | FQ13: 172 | FR13: 173 | FS13: 174 | FT13: 175 | FU13: 176 | FV13: 177 | FW13: 178 | FX13: 179 | FY13: 180 | FZ13: 181 | GA13: 182 | GB13: 183 | GC13: 184 | GD13: 185 | GE13: 186 | GF13: 187 | GG13: 188 | GH13: 189 | GI13: 190 | GJ13: 191 | GK13: 192 | GL13: =GK13+1 -> 193 | GM13: =GL13+1 -> 194 | GN13: =GM13+1 -> 195 | GO13: =GN13+1 -> 196 | GP13: =GO13+1 -> 197 | GQ13: =GP13+1 -> 198 | GR13: 199 | GS13: 200 | GT13: 201 | GU13: 202 | GV13: 203 | GW13: 204 | GX13: 205 | GY13: 206 | GZ13: 207 | HA13: 208 | HB13: 209 | HC13: 210 | HD13: 211 | HE13: 212 | HF13: 213 | HG13: 214 | HH13: 215 | HI13: 216 | HJ13: 217 | HK13: =HJ13+1 -> 218 | HL13: =HK13+1 -> 219 | HM13: =HL13+1 -> 220 | HN13: =HM13+1 -> 221 | HO13: 222 | HP13: 223 | HQ13: 224 | HR13: 225 | HS13: 226 | HT13: 227 | HU13: 228 | HV13: 229 | HW13: =HV13+1 -> 230 | HX13: 231 | HY13: 232 | HZ13: 233 | IA13: 234 | IB13: 235 | IC13: 236 | ID13: 237 | IE13: 238 | IF13: 239 | IG13: 240 | IH13: 241 | II13: =IH13+1 -> 242 | IJ13: =II13+1 -> 243 | IK13: 244 | IL13: =IK13+1 -> 245 | IM13: =IL13+1 -> 246 | IN13: =IM13+1 -> 247 | IO13: 248 | IP13: 249 | IQ13: 250 | IR13: 251 | IS13: =IR13+1 -> 252 | IT13: 253 | IU13: 254 | IV13: 255 | IW13: 256 | IX13: 257 | IY13: 258 | IZ13: 259 | JA13: 260 | JB13: 261 | JC13: 262 | JD13: =JC13+1 -> 263 | JE13: 264 | JF13: 265 | JG13: 266 | JH13: 267 | JI13: 268 | JJ13: 269 | JK13: 270 | JL13: 271 | JM13: 272 | JN13: 273 | JO13: 274 | JP13: 275 | JQ13: 276 | JR13: 277 | JS13: 278 | JT13: 279 | JU13: 280 | JV13: 281 | JW13: 282 | JX13: 283 | JY13: 284 | JZ13: 285 | KA13: 286 | KB13: 287 | KC13: 288 | KD13: =KC13+1 -> 289 | KE13: =KD13+1 -> 290 | KF13: =KE13+1 -> 291 | KG13: 292 | KH13: =KG13+1 -> 293 | KI13: =KH13+1 -> 294 | KJ13: 295 | KK13: =KJ13+1 -> 296 | KL13: 297 | KM13: 298 | KN13: =KM13+1 -> 299 | KO13: 300 | KP13: =KO13+1 -> 301 | KQ13: =KP13+1 -> 302 | KR13: =KQ13+1 -> 303 | KS13: 304 | KT13: =KS13+1 -> 305 | KU13: 306 | KV13: 307 | KW13: 308 | KX13: 309 | KY13: =KX13+1 -> 310 | KZ13: 324 | LA13: 325 | LB13: =KX13+1 -> 310 | LC13: 311 | LD13: 312 | LE13: =LD13+1 -> 313 | LF13: =LE13+1 -> 314 | LG13: 315 | LH13: 316 | LI13: 317 | LJ13: 318 | LK13: =LJ13+1 -> 319 | LL13: 320 | LM13: 321 | LN13: 322 | LO13: 323 | LP13: 324 | LQ13: 325 | LR13: 326 | LS13: =LR13+1 -> 327 | LT13: =LS13+1 -> 328 | LU13: 329 | LV13: 330 | LW13: 331 | LX13: 332 | LY13: 333 | LZ13: 334 | MA13: =LZ13+1 -> 335 | MB13: =MA13+1 -> 336 | MC13: =MB13+1 -> 337 | MD13: =MC13+1 -> 338 | ME13: 339 | MF13: 340 | MG13: 341 | MH13: 342 | MI13: 343 | MJ13: 344 | MK13: 345 | ML13: 346 | MM13: 347 | MN13: 348 | MO13: 349 | MP13: =MO13+1 -> 350 | MQ13: =MP13+1 -> 351 | MR13: =MQ13+1 -> 352 | MS13: 353 | MT13: 354 | MU13: 355 | MV13: =MU13+1 -> 356 | MW13: =MV13+1 -> 357 | MX13: =MW13+1 -> 358 | MY13: =MX13+1 -> 359 | MZ13: =MY13+1 -> 360 | NA13: =MZ13+1 -> 361 | NB13: =NA13+1 -> 362 | NC13: 363 | ND13: 364 | NE13: 365 | NF13: =NE13+1 -> 366 | NG13: =NF13+1 -> 367 | NH13: =NG13+1 -> 368 | NI13: =NH13+1 -> 369 | NJ13: =NI13+1 -> 370 | NK13: =NJ13+1 -> 371 | NL13: =NK13+1 -> 372 | NM13: =NL13+1 -> 373 | NN13: 374 | NO13: 375 | NP13: 376 | NQ13: 377 | NR13: =NQ13+1 -> 378 | NS13: =NR13+1 -> 379 | NT13: =NS13+1 -> 380 | NU13: 381 | NV13: 382 | NW13: 383 | NX13: 384 | NY13: 385 | NZ13: 386 | OA13: =NZ13+1 -> 387 | OB13: =OA13+1 -> 388
A14: 整数 | B14: 自動入力 | C14: 自動入力 | D14: 自動入力 | E14: 自動入力 | F14: 自動入力 | G14: 自動入力 | H14: 文字 | I14: リスト | J14: 文字 | K14: 自動入力 | L14: 整数 | M14: 整数 | N14: 整数 | O14: 整数 | P14: 整数 | Q14: 整数 | R14: 整数 | S14: 整数 | T14: 自動入力 | U14: 整数 | V14: 整数 | W14: 整数 | X14: 整数 | Y14: 整数 | Z14: 整数 | AA14: 整数 | AB14: 整数 | AC14: 整数 | AD14: 整数 | AE14: 自動入力 | AF14: 自動入力 | AG14: 自動入力 | AH14: 自動入力 | AI14: 自動入力 | AJ14: 自動入力 | AK14: 自動入力 | AL14: 自動入力 | AM14: 自動入力 | AN14: 自動入力 | AO14: 自動入力 | AP14: 自動入力 | AQ14: 自動入力 | AR14: 自動入力 | AS14: 自動入力 | AT14: 自動入力 | AU14: 自動入力 | AV14: 自動入力 | AW14: 自動入力 | AX14: 自動入力 | AY14: 自動入力 | AZ14: 自動入力 | BA14: 自動入力 | BB14: 自動入力 | BC14: 自動入力 | BD14: 自動入力 | BE14: 自動入力 | BF14: 自動入力 | BG14: 自動入力 | BH14: 自動入力 | BI14: 自動入力 | BJ14: 自動入力 | BK14: 整数 | BL14: 整数 | BM14: 整数 | BN14: 整数 | BO14: 整数 | BP14: 整数 | BQ14: 自動入力 | BR14: 整数 | BS14: 整数 | BT14: 整数 | BU14: 整数 | BV14: 整数 | BW14: 整数 | BX14: 自動入力 | BY14: 整数 | BZ14: 整数 | CA14: 整数 | CB14: 整数 | CC14: 整数 | CD14: 整数 | CE14: 整数 | CF14: 自動入力 | CG14: 整数 | CH14: 整数 | CI14: 整数 | CJ14: 整数 | CK14: 整数 | CL14: リスト | CM14: 自動入力 | CN14: 自動入力 | CO14: 整数 | CP14: 整数 | CQ14: 整数 | CR14: 整数 | CS14: 整数 | CT14: 整数 | CU14: 自動入力 | CV14: 整数 | CW14: 整数 | CX14: 整数 | CY14: 整数 | CZ14: 整数 | DA14: 整数 | DB14: 自動入力 | DC14: 整数 | DD14: 整数 | DE14: 整数 | DF14: 整数 | DG14: 整数 | DH14: 整数 | DI14: 整数 | DJ14: 自動入力 | DK14: 整数 | DL14: 整数 | DM14: 整数 | DN14: 整数 | DO14: 整数 | DP14: 整数 | DQ14: 整数 | DR14: 自動入力 | DS14: 整数 | DT14: 整数 | DU14: 整数 | DV14: 整数 | DW14: 文字 | DX14: 整数 | DY14: 整数 | DZ14: 整数 | EA14: 整数 | EB14: 整数 | EC14: 自動入力 | ED14: 整数 | EE14: 整数 | EF14: 整数 | EG14: 整数 | EH14: 整数 | EI14: 整数 | EJ14: 整数 | EK14: 自動入力 | EL14: 自動入力 | EM14: 整数 | EN14: 整数 | EO14: 整数 | EP14: 整数 | EQ14: 自動入力 | ER14: 自動入力 | ES14: 整数 | ET14: 整数 | EU14: 整数 | EV14: 整数 | EW14: 文字 | EX14: リスト | EY14: リスト | EZ14: 文字 | FA14: リスト | FB14: リスト | FC14: 文字 | FD14: リスト | FE14: リスト | FF14: 自動入力 | FG14: 自動入力 | FH14: 整数 | FI14: 整数 | FJ14: 整数 | FK14: 整数 | FL14: リスト | FM14: リスト | FN14: リスト | FO14: リスト | FP14: リスト | FQ14: リスト | FR14: リスト | FS14: リスト | FT14: リスト | FU14: 文字 | FV14: リスト | FW14: リスト | FX14: リスト | FY14: リスト | FZ14: リスト | GA14: リスト | GB14: リスト | GC14: リスト | GD14: リスト | GE14: リスト | GF14: リスト | GG14: 文字 | GH14: 自動入力 | GI14: 整数 | GJ14: 整数 | GK14: 整数 | GL14: 整数 | GM14: 整数 | GN14: 自動入力 | GO14: 整数 | GP14: 整数 | GQ14: 自動入力 | GR14: リスト | GS14: リスト | GT14: リスト | GU14: 文字 | GV14: リスト | GW14: リスト | GX14: 自動入力 | GY14: 自動入力 | GZ14: 整数 | HA14: 整数 | HB14: 文字 | HC14: リスト | HD14: リスト | HE14: 自動入力 | HF14: 自動入力 | HG14: 整数 | HH14: 整数 | HI14: 文字 | HJ14: リスト | HK14: リスト | HL14: リスト | HM14: リスト | HN14: 自動入力 | HO14: 自動入力 | HP14: 自動入力 | HQ14: 自動入力 | HR14: 整数 | HS14: 整数 | HT14: 自動入力 | HU14: 整数 | HV14: 自動入力 | HW14: 整数 | HX14: 整数 | HY14: 整数 | HZ14: 整数 | IA14: 整数 | IB14: 整数 | IC14: 整数 | ID14: 整数 | IE14: 整数 | IF14: 整数 | IG14: 整数 | IH14: 整数 | II14: 整数 | IJ14: 整数 | IK14: 整数 | IL14: 自動入力 | IM14: リスト | IN14: リスト | IO14: リスト | IP14: リスト | IQ14: リスト | IR14: リスト | IS14: リスト | IT14: リスト | IU14: リスト | IV14: リスト | IW14: 自動入力 | IX14: リスト | IY14: リスト | IZ14: リスト | JA14: 自動入力 | JB14: リスト | JC14: リスト | JD14: リスト | JE14: リスト | JF14: リスト | JG14: リスト | JH14: リスト | JI14: リスト | JJ14: リスト | JK14: リスト | JL14: 自動入力 | JM14: リスト | JN14: リスト | JO14: リスト | JP14: リスト | JQ14: 文字 | JR14: 自動入力 | JS14: リスト | JT14: リスト | JU14: リスト | JV14: リスト | JW14: リスト | JX14: リスト | JY14: リスト | JZ14: リスト | KA14: リスト | KB14: リスト | KC14: 文字 | KD14: リスト | KE14: リスト | KF14: リスト | KG14: リスト | KH14: 文字 | KI14: 整数 | KJ14: 整数 | KK14: リスト | KL14: リスト | KM14: リスト | KN14: リスト | KO14: リスト | KP14: リスト | KQ14: リスト | KR14: 文字 | KS14: リスト | KT14: リスト | KU14: リスト | KV14: リスト | KW14: リスト | KX14: リスト | KY14: リスト | KZ14: リスト | LA14: リスト | LB14: リスト | LC14: 文字 | LD14: リスト | LE14: リスト | LF14: リスト | LG14: リスト | LH14: リスト | LI14: リスト | LJ14: リスト | LK14: リスト | LL14: リスト | LM14: リスト | LN14: リスト | LO14: リスト | LP14: リスト | LQ14: 文字 | LR14: 整数 | LS14: 整数 | LT14: リスト | LU14: リスト | LV14: リスト | LW14: リスト | LX14: リスト | LY14: リスト | LZ14: リスト | MA14: 文字 | MB14: リスト | MC14: リスト | MD14: リスト | ME14: リスト | MF14: リスト | MG14: リスト | MH14: リスト | MI14: リスト | MJ14: リスト | MK14: リスト | ML14: リスト | MM14: 文字 | MN14: リスト | MO14: 自動入力 | MP14: 自動入力 | MQ14: 整数 | MR14: 整数 | MS14: 整数 | MT14: 整数 | MU14: 整数 | MV14: 整数 | MW14: 整数 | MX14: 整数 | MY14: 整数 | MZ14: 自動入力 | NA14: 整数 | NB14: 整数 | NC14: 整数 | ND14: 整数 | NE14: 整数 | NF14: 整数 | NG14: 整数 | NH14: 整数 | NI14: 整数 | NJ14: 自動入力 | NK14: 整数 | NL14: 整数 | NM14: リスト | NN14: リスト | NO14: リスト | NP14: リスト | NQ14: リスト | NR14: 文字 | NS14: リスト | NT14: リスト | NU14: リスト | NV14: リスト | NW14: リスト | NX14: リスト | NY14: リスト | NZ14: リスト | OA14: 文字 | OB14: 文字
B15: =はじめに!D3 -> 鳥取県 | C15: =はじめに!D4 -> 伯耆町 | E15: =はじめに!D5 -> あいうえお協定 | G15: =IFERROR(D15*10000+F15,"") -> 0 | H15: =はじめに!D7 -> 鳥取県伯耆町○○○○ | I15: =#REF! ->  | K15: =M15+N15+O15+P15+Q15+R15+S15 ->  | L15: =#REF! ->  | M15: =COUNTIF(#REF!,"A")+COUNTIF(#REF!,"B") ->  | N15: =COUNTIF(#REF!,"C")+COUNTIF(#REF!,"D")+COUNTIF(#REF!,"E") ->  | O15: =COUNTIF(#REF!,"F")+COUNTIF(#REF!,"G")+COUNTIF(#REF!,"H")+COUNTIF(#REF!,"I") ->  | P15: =COUNTIF(#REF!,"J") ->  | Q15: =COUNTIF(#REF!,"K") ->  | R15: =COUNTIF(#REF!,"L") ->  | S15: =COUNTIF(#REF!,"M") ->  | T15: =U15+V15+W15+X15+Y15+Z15+AA15+AB15+AC15+AD15 ->  | U15: =COUNTIF(#REF!,"ア") ->  | V15: =COUNTIF(#REF!,"イ") ->  | W15: =COUNTIF(#REF!,"ウ") ->  | X15: =COUNTIF(#REF!,"エ") ->  | Y15: =COUNTIF(#REF!,"オ") ->  | Z15: =COUNTIF(#REF!,"カ") ->  | AA15: =COUNTIF(#REF!,"キ") ->  | AB15: =COUNTIF(#REF!,"ク") ->  | AC15: =COUNTIF(#REF!,"ケ") ->  | AD15: =COUNTIF(#REF!,"コ") ->  | AE15: =IF(CM15*BI15>0,"通特併存",IF(BI15<>0,"通常",IF(CM15<>0,"特認",IF(CM15*BI15=0,"")))) ->  | AF15: =AG15+AN15+AU15+BC15 ->  | AG15: =AH15+AI15+AJ15+AK15+AL15+AM15 ->  | AH15: =BK15+CO15 ->  | AJ15: =BM15+CQ15 ->  | AN15: =AO15+AP15+AQ15+AR15+AS15+AT15 ->  | AO15: =BR15+CV15 ->  | AU15: =AV15+AW15+AX15+AY15+AZ15+BA15+BB15 ->  | AV15: =BY15+DC15 ->  | BC15: =BD15+BE15+BF15+BG15+BH15 ->  | BD15: =CG15+DK15 ->  | BI15: =BJ15+BQ15+BX15+CF15 ->  | BJ15: =BK15+BL15+BM15+BN15+BO15+BP15 ->  | BK15: =SUMIFS(#REF!,#REF!,"通常地域（8法内）",#REF!,"田",#REF!,"急傾斜")+SUMIFS(#REF!,#REF!,"通常地域（8法以外で棚田法の交付対象農用地）",#REF!,"田",#REF!,"急傾斜") ->  | BL15: =SUMIFS(#REF!,#REF!,"通常地域（8法内）",#REF!,"田",#REF!,"緩傾斜")+SUMIFS(#REF!,#REF!,"通常地域（8法以外で棚田法の交付対象農用地）",#REF!,"田",#REF!,"緩傾斜") ->  | BM15: =SUMIFS(#REF!,#REF!,"通常地域（8法内）",#REF!,"田",#REF!,"高齢化・耕作放棄率")+SUMIFS(#REF!,#REF!,"通常地域（8法以外で棚田法の交付対象農用地）",#REF!,"田",#REF!,"高齢化・耕作放棄率") ->  | BN15: =SUMIFS(#REF!,#REF!,"通常地域（8法内）",#REF!,"田",#REF!,"小区画・不整形")+SUMIFS(#REF!,#REF!,"通常地域（8法以外で棚田法の交付対象農用地）",#REF!,"田",#REF!,"小区画・不整形") ->  | BO15: =SUMIFS(#REF!,#REF!,"通常地域（8法内）",#REF!,"田",#REF!,"特認基準")+SUMIFS(#REF!,#REF!,"通常地域（8法以外で棚田法の交付対象農用地）",#REF!,"田",#REF!,"特認基準") ->  | BP15: =SUMIFS(#REF!,#REF!,"通常地域（8法内）",#REF!,"田",#REF!,"交付対象外")+SUMIFS(#REF!,#REF!,"通常地域（8法以外で棚田法の交付対象農用地）",#REF!,"田",#REF!,"交付対象外") ->  | BQ15: =BR15+BS15+BT15+BU15+BV15+BW15 ->  | BR15: =SUMIFS(#REF!,#REF!,"通常地域（8法内）",#REF!,"畑",#REF!,"急傾斜")+SUMIFS(#REF!,#REF!,"通常地域（8法以外で棚田法の交付対象農用地）",#REF!,"畑",#REF!,"急傾斜") ->  | BS15: =SUMIFS(#REF!,#REF!,"通常地域（8法内）",#REF!,"畑",#REF!,"緩傾斜")+SUMIFS(#REF!,#REF!,"通常地域（8法以外で棚田法の交付対象農用地）",#REF!,"畑",#REF!,"緩傾斜") ->  | BT15: =SUMIFS(#REF!,#REF!,"通常地域（8法内）",#REF!,"畑",#REF!,"高齢化・耕作放棄率")+SUMIFS(#REF!,#REF!,"通常地域（8法以外で棚田法の交付対象農用地）",#REF!,"畑",#REF!,"高齢化・耕作放棄率") ->  | BU15: =SUMIFS(#REF!,#REF!,"通常地域（8法内）",#REF!,"畑",#REF!,"特認基準")+SUMIFS(#REF!,#REF!,"通常地域（8法以外で棚田法の交付対象農用地）",#REF!,"畑",#REF!,"特認基準") ->  | BV15: =SUMIFS(#REF!,#REF!,"通常地域（8法内）",#REF!,"畑",#REF!,"交付対象外（田畑混在地）")+SUMIFS(#REF!,#REF!,"通常地域（8法以外で棚田法の交付対象農用地）",#REF!,"畑",#REF!,"交付対象外（田畑混在地）") ->  | BW15: =SUMIFS(#REF!,#REF!,"通常地域（8法内）",#REF!,"畑",#REF!,"交付対象外（田畑混在地以外）")+SUMIFS(#REF!,#REF!,"通常地域（8法以外で棚田法の交付対象農用地）",#REF!,"畑",#REF!,"交付対象外（田畑混在地以外）") ->  | BX15: =BY15+BZ15+CA15+CB15+CC15+CD15+CE15 ->  | BY15: =SUMIFS(#REF!,#REF!,"通常地域（8法内）",#REF!,"草地",#REF!,"急傾斜")+SUMIFS(#REF!,#REF!,"通常地域（8法以外で棚田法の交付対象農用地）",#REF!,"草地",#REF!,"急傾斜") ->  | BZ15: =SUMIFS(#REF!,#REF!,"通常地域（8法内）",#REF!,"草地",#REF!,"緩傾斜")+SUMIFS(#REF!,#REF!,"通常地域（8法以外で棚田法の交付対象農用地）",#REF!,"草地",#REF!,"緩傾斜") ->  | CA15: =SUMIFS(#REF!,#REF!,"通常地域（8法内）",#REF!,"草地",#REF!,"草地比率の高い草地")+SUMIFS(#REF!,#REF!,"通常地域（8法以外で棚田法の交付対象農用地）",#REF!,"草地",#REF!,"草地比率の高い草地") ->  | CB15: =SUMIFS(#REF!,#REF!,"通常地域（8法内）",#REF!,"草地",#REF!,"高齢化・耕作放棄率")+SUMIFS(#REF!,#REF!,"通常地域（8法以外で棚田法の交付対象農用地）",#REF!,"草地",#REF!,"高齢化・耕作放棄率") ->  | CC15: =SUMIFS(#REF!,#REF!,"通常地域（8法内）",#REF!,"草地",#REF!,"特認基準")+SUMIFS(#REF!,#REF!,"通常地域（8法以外で棚田法の交付対象農用地）",#REF!,"草地",#REF!,"特認基準") ->  | CD15: =SUMIFS(#REF!,#REF!,"通常地域（8法内）",#REF!,"草地",#REF!,"交付対象外（田草地混在地）")+SUMIFS(#REF!,#REF!,"通常地域（8法以外で棚田法の交付対象農用地）",#REF!,"草地",#REF!,"交付対象外（田草地混在地）") ->  | CE15: =SUMIFS(#REF!,#REF!,"通常地域（8法内）",#REF!,"草地",#REF!,"交付対象外（田草地混在地以外）")+SUMIFS(#REF!,#REF!,"通常地域（8法以外で棚田法の交付対象農用地）",#REF!,"草地",#REF!,"交付対象外（田草地混在地以外）") ->  | CF15: =CG15+CH15+CI15+CJ15+CK15 ->  | CG15: =SUMIFS(#REF!,#REF!,"通常地域（8法内）",#REF!,"採草放牧地",#REF!,"急傾斜")+SUMIFS(#REF!,#REF!,"通常地域（8法以外で棚田法の交付対象農用地）",#REF!,"採草放牧地",#REF!,"急傾斜") ->  | CH15: =SUMIFS(#REF!,#REF!,"通常地域（8法内）",#REF!,"採草放牧地",#REF!,"緩傾斜")+SUMIFS(#REF!,#REF!,"通常地域（8法以外で棚田法の交付対象農用地）",#REF!,"採草放牧地",#REF!,"緩傾斜") ->  | CI15: =SUMIFS(#REF!,#REF!,"通常地域（8法内）",#REF!,"採草放牧地",#REF!,"特認基準")+SUMIFS(#REF!,#REF!,"通常地域（8法以外で棚田法の交付対象農用地）",#REF!,"採草放牧地",#REF!,"特認基準") ->  | CJ15: =SUMIFS(#REF!,#REF!,"通常地域（8法内）",#REF!,"採草放牧地",#REF!,"交付対象外（田採草放牧地混在地）")+SUMIFS(#REF!,#REF!,"通常地域（8法以外で棚田法の交付対象農用地）",#REF!,"採草放牧地",#REF!,"交付対象外（田採草放牧地混在地）") ->  | CK15: =SUMIFS(#REF!,#REF!,"通常地域（8法内）",#REF!,"採草放牧地",#REF!,"交付対象外（田採草放牧地混在地以外）")+SUMIFS(#REF!,#REF!,"通常地域（8法以外で棚田法の交付対象農用地）",#REF!,"採草放牧地",#REF!,"交付対象外（田採草放牧地混在地以外）") ->  | CM15: =CN15+CU15+DB15+DJ15 ->  | CN15: =CO15+CP15+CQ15+CR15+CS15+CT15 ->  | CO15: =SUMIFS(#REF!,#REF!,"特認地域",#REF!,"田",#REF!,"急傾斜") ->  | CP15: =SUMIFS(#REF!,#REF!,"特認地域",#REF!,"田",#REF!,"緩傾斜") ->  | CQ15: =SUMIFS(#REF!,#REF!,"特認地域",#REF!,"田",#REF!,"高齢化・耕作放棄率") ->  | CR15: =SUMIFS(#REF!,#REF!,"特認地域",#REF!,"田",#REF!,"小区画・不整形") ->  | CS15: =SUMIFS(#REF!,#REF!,"特認地域",#REF!,"田",#REF!,"特認基準") ->  | CT15: =SUMIFS(#REF!,#REF!,"特認地域",#REF!,"田",#REF!,"交付対象外") ->  | CU15: =CV15+CW15+CX15+CY15+CZ15+DA15 ->  | CV15: =SUMIFS(#REF!,#REF!,"特認地域",#REF!,"畑",#REF!,"急傾斜") ->  | CW15: =SUMIFS(#REF!,#REF!,"特認地域",#REF!,"畑",#REF!,"緩傾斜") ->  | CX15: =SUMIFS(#REF!,#REF!,"特認地域",#REF!,"畑",#REF!,"高齢化・耕作放棄率") ->  | CY15: =SUMIFS(#REF!,#REF!,"特認地域",#REF!,"畑",#REF!,"特認基準") ->  | CZ15: =SUMIFS(#REF!,#REF!,"特認地域",#REF!,"畑",#REF!,"交付対象外（田畑混在地）") ->  | DA15: =SUMIFS(#REF!,#REF!,"特認地域",#REF!,"畑",#REF!,"交付対象外（田畑混在地以外）") ->  | DB15: =DC15+DD15+DE15+DF15+DG15+DH15+DI15 ->  | DC15: =SUMIFS(#REF!,#REF!,"特認地域",#REF!,"草地",#REF!,"急傾斜") ->  | DD15: =SUMIFS(#REF!,#REF!,"特認地域",#REF!,"草地",#REF!,"緩傾斜") ->  | DE15: =SUMIFS(#REF!,#REF!,"特認地域",#REF!,"草地",#REF!,"草地比率の高い草地") ->  | DF15: =SUMIFS(#REF!,#REF!,"特認地域",#REF!,"草地",#REF!,"高齢化・耕作放棄率") ->  | DG15: =SUMIFS(#REF!,#REF!,"特認地域",#REF!,"草地",#REF!,"特認基準") ->  | DH15: =SUMIFS(#REF!,#REF!,"特認地域",#REF!,"草地",#REF!,"交付対象外（田草地混在地）") ->  | DI15: =SUMIFS(#REF!,#REF!,"特認地域",#REF!,"草地",#REF!,"交付対象外（田草地混在地以外）") ->  | DJ15: =DK15+DL15+DM15+DN15+DO15 ->  | DK15: =SUMIFS(#REF!,#REF!,"特認地域",#REF!,"採草放牧地",#REF!,"急傾斜") ->  | DL15: =SUMIFS(#REF!,#REF!,"特認地域",#REF!,"採草放牧地",#REF!,"緩傾斜") ->  | DM15: =SUMIFS(#REF!,#REF!,"特認地域",#REF!,"採草放牧地",#REF!,"特認基準") ->  | DN15: =SUMIFS(#REF!,#REF!,"特認地域",#REF!,"採草放牧地",#REF!,"交付対象外（田採草放牧地混在地）") ->  | DO15: =SUMIFS(#REF!,#REF!,"特認地域",#REF!,"採草放牧地",#REF!,"交付対象外（田採草放牧地混在地以外）") ->  | DP15: =#REF!+#REF!+#REF!+#REF! ->  | DR15: =DS15+DX15+DY15+DZ15+EA15+EB15 -> 0 | DS15: =DT15+DU15+DV15 -> 0 | EC15: =EE15+EF15+EG15 ->  | EE15: =SUMIFS(#REF!,#REF!,"荒廃農地",#REF!,"復旧",#REF!,"田") ->  | EF15: =SUMIFS(#REF!,#REF!,"荒廃農地",#REF!,"復旧",#REF!,"畑") ->  | EG15: =SUMIFS(#REF!,#REF!,"荒廃農地",#REF!,"復旧",#REF!,"草地") ->  | EH15: =SUMIFS(#REF!,#REF!,"被災地",#REF!,"復旧") ->  | EJ15: =SUMIFS(#REF!,#REF!,"協定に含めない管理すべき農用地") ->  | EK15: =IF(SUM(EM15:EN15)>0,1,0) ->  | EL15: =EM15+EN15 ->  | EM15: =#REF! ->  | EN15: =#REF! ->  | EO15: =#REF! ->  | EQ15: =IF(SUM(ES15:ET15)>0,1,0) ->  | ER15: =ES15+ET15 ->  | ES15: =#REF! ->  | ET15: =#REF! ->  | EU15: =#REF! ->  | EW15: =#REF! ->  | EX15: =#REF! ->  | EZ15: =#REF! ->  | FA15: =#REF! ->  | FC15: =#REF! ->  | FD15: =#REF! ->  | FF15: =IF(SUM(FH15:FI15)>0,1,0) ->  | FG15: =FH15+FI15 ->  | FH15: =#REF! ->  | FI15: =#REF! ->  | FJ15: =#REF! ->  | GH15: =IF(GI15>0,1,0) ->  | GI15: =#REF!+#REF!+#REF!+#REF!+#REF!+#REF!+#REF!+#REF! ->  | GJ15: =#REF! ->  | GL15: =COUNTIFS(#REF!,"<>") ->  | GM15: =COUNTIFS(#REF!,"<>") ->  | GN15: =GO15+GP15 -> 0 | GQ15: =SUM(GR15:GT15) -> 0 | GU15: =#REF! ->  | GV15: =#REF! ->  | GX15: =IF(GY15>0,1,0) ->  | GY15: =#REF!+#REF!+#REF!+#REF! ->  | GZ15: =#REF! ->  | HB15: =#REF! ->  | HC15: =#REF! ->  | HE15: =IF(HF15>0,1,0) ->  | HF15: =#REF!+#REF!+#REF!+#REF! ->  | HG15: =#REF! ->  | HI15: =#REF! ->  | HJ15: =#REF! ->  | HL15: =IF(#REF!="〇",1,"") ->  | HM15: =IF(#REF!="〇",1,"") ->  | HN15: =DP15+EO15+EU15+FJ15+GJ15+GZ15+HG15 ->  | HO15: =DQ15+EP15+EV15+FK15+GK15+HA15+HH15 -> 0 | HP15: =HN15-HR15 ->  | HQ15: =HP15/HN15 ->  | HR15: =#REF! ->  | HT15: =HN15+HS15 ->  | HV15: =HW15+HX15+HY15+HZ15+IA15+IB15+IC15+ID15+IE15+IF15+IG15+IH15+II15+IJ15 ->  | HW15: =#REF! ->  | HX15: =#REF! ->  | HY15: =#REF! ->  | HZ15: =#REF! ->  | IA15: =#REF! ->  | IB15: =#REF! ->  | IC15: =#REF! ->  | ID15: =#REF! ->  | IE15: =#REF! ->  | IF15: =#REF! ->  | IG15: =#REF! ->  | IH15: =#REF! ->  | IL15: =SUM(IN15:IV15) ->  | IM15: =IF(#REF!="✓",1,"") ->  | IN15: =IF(#REF!="〇",1,"") ->  | IO15: =IF(#REF!="〇",1,"") ->  | IP15: =IF(#REF!="〇",1,"") ->  | IQ15: =IF(#REF!="〇",1,"") ->  | IR15: =IF(#REF!="〇",1,"") ->  | IS15: =IF(#REF!="〇",1,"") ->  | IT15: =IF(#REF!="〇",1,"") ->  | IU15: =IF(#REF!="〇",1,"") ->  | IV15: =IF(#REF!="〇",1,"") ->  | IW15: =SUM(IX15:IZ15) ->  | IX15: =IF(OR(#REF!="〇",#REF!="〇",#REF!="〇"),1,"") ->  | IY15: =IF(OR(#REF!="〇",#REF!="〇",#REF!="〇"),1,"") ->  | IZ15: =IF(#REF!<>"",1,"") ->  | JA15: =SUM(JB15:JK15) ->  | JB15: =IF(#REF!="〇",1,"") ->  | JC15: =IF(#REF!="〇",1,"") ->  | JD15: =IF(#REF!="〇",1,"") ->  | JE15: =IF(#REF!="〇",1,"") ->  | JF15: =IF(#REF!="〇",1,"") ->  | JG15: =IF(#REF!="〇",1,"") ->  | JH15: =IF(#REF!="〇",1,"") ->  | JI15: =IF(#REF!="〇",1,"") ->  | JJ15: =IF(#REF!="〇",1,"") ->  | JK15: =IF(#REF!="〇",1,"") ->  | JL15: =SUM(JM15:JP15) ->  | JM15: =IF(#REF!="〇",1,"") ->  | JN15: =IF(#REF!="〇",1,"") ->  | JO15: =IF(#REF!="〇",1,"") ->  | JP15: =IF(#REF!="〇",1,"") ->  | JQ15: =#REF!&"" ->  | JR15: =SUM(JS15:KB15) ->  | JS15: =IF(#REF!="〇",1,"") ->  | JT15: =IF(#REF!="〇",1,"") ->  | JU15: =IF(#REF!="〇",1,"") ->  | JV15: =IF(#REF!="〇",1,"") ->  | JW15: =IF(#REF!="〇",1,"") ->  | JX15: =IF(#REF!="〇",1,"") ->  | JY15: =IF(#REF!="〇",1,"") ->  | JZ15: =IF(#REF!="〇",1,"") ->  | KA15: =IF(#REF!="〇",1,"") ->  | KB15: =IF(#REF!="〇",1,"") ->  | KC15: =#REF!&"" ->  | KE15: =IF(#REF!="○",1,"") ->  | KF15: =IF(#REF!="○",1,"") ->  | KG15: =IF(#REF!="○",1,"") ->  | KH15: =#REF!&"" ->  | KI15: =COUNTIFS(#REF!,"<>") ->  | KJ15: =#REF! ->  | KK15: =IF(#REF!="○",1,"") ->  | KL15: =IF(#REF!="○",1,"") ->  | KM15: =IF(#REF!="○",1,"") ->  | KN15: =IF(#REF!="○",1,"") ->  | KO15: =IF(#REF!="○",1,"") ->  | KP15: =IF(#REF!="○",1,"") ->  | KQ15: =IF(#REF!="○",1,"") ->  | KR15: =#REF!&"" ->  | KS15: =IF(#REF!="○",1,"") ->  | KT15: =IF(#REF!="○",1,"") ->  | KU15: =IF(#REF!="○",1,"") ->  | KV15: =IF(#REF!="○",1,"") ->  | KW15: =IF(#REF!="○",1,"") ->  | KX15: =IF(#REF!="○",1,"") ->  | KY15: =IF(#REF!="○",1,"") ->  | KZ15: =IF(#REF!="○",1,"") ->  | LA15: =IF(#REF!="○",1,"") ->  | LB15: =IF(#REF!="○",1,"") ->  | LC15: =#REF!&"" ->  | LD15: =IF(#REF!="○",1,"") ->  | LE15: =IF(#REF!="○",1,"") ->  | LF15: =IF(#REF!="○",1,"") ->  | LG15: =IF(#REF!="○",1,"") ->  | LH15: =#REF!&"" ->  | LJ15: =IF(#REF!="○",1,"") ->  | LK15: =IF(#REF!="○",1,"") ->  | LL15: =IF(#REF!="○",1,"") ->  | LM15: =IF(#REF!="○",1,"") ->  | LN15: =IF(#REF!="○",1,"") ->  | LO15: =IF(#REF!="○",1,"") ->  | LP15: =#REF!&"" ->  | LQ15: =#REF!&"" ->  | LR15: =COUNTIFS(#REF!,"<>") ->  | LS15: =#REF! ->  | LT15: =IF(#REF!="○",1,"") ->  | LU15: =IF(#REF!="○",1,"") ->  | LV15: =IF(#REF!="○",1,"") ->  | LW15: =IF(#REF!="○",1,"") ->  | LX15: =IF(#REF!="○",1,"") ->  | LY15: =IF(#REF!="○",1,"") ->  | LZ15: =IF(#REF!="○",1,"") ->  | MA15: =#REF!&"" ->  | MB15: =IF(#REF!="○",1,"") ->  | MC15: =IF(#REF!="○",1,"") ->  | MD15: =IF(#REF!="○",1,"") ->  | ME15: =IF(#REF!="○",1,"") ->  | MF15: =IF(#REF!="○",1,"") ->  | MG15: =IF(#REF!="○",1,"") ->  | MH15: =IF(#REF!="○",1,"") ->  | MI15: =IF(#REF!="○",1,"") ->  | MJ15: =IF(#REF!="○",1,"") ->  | MK15: =IF(#REF!="○",1,"") ->  | ML15: =IF(#REF!="○",1,"") ->  | MM15: =#REF!&"" ->  | MO15: =MP15+MZ15 -> 0 | MP15: =SUM(MQ15:MY15) -> 0 | MZ15: =SUM(NA15:NI15) -> 0 | NJ15: =NK15+NL15 ->  | NK15: =R15 ->  | NL15: =#REF! ->  | NM15: =IF(#REF!="○",1,"") ->  | NN15: =IF(#REF!="○",1,"") ->  | NO15: =IF(#REF!="○",1,"") ->  | NP15: =IF(#REF!="○",1,"") ->  | NQ15: =IF(#REF!="○",1,"") ->  | NR15: =#REF!&"" ->  | NS15: =IF(#REF!="○",1,"") ->  | NT15: =IF(#REF!="○",1,"") ->  | NU15: =IF(#REF!="○",1,"") ->  | NV15: =IF(#REF!="○",1,"") ->  | NW15: =IF(#REF!="○",1,"") ->  | NX15: =IF(#REF!="○",1,"") ->  | NY15: =IF(#REF!="○",1,"") ->  | NZ15: =IF(#REF!="○",1,"") ->  | OA15: =#REF!&"" -> 
